Workbook

Sheet gl. til nyt niveau (hidden)
B1: 1.398079
D2: Nyt grundbeløb | E2: Nyt grundbeløb
A3: Grundbeløb pr. 1/10-1984 | B3: I alt pr. 1. april 1999 inkl. %regulering | D3: pr. 31/3-2000 | E3: pr. 31/3-2000
D4: ekskl. afrunding | E4: inkl. afrunding
F5: beløb
B6: pr. gang/år | C6: pr. måned | F6: +/-
A7: 1.63 | B7: =IF(A7<1000,$B$1*A7,ROUND($B$1*A7,0)) -> 2.27886877 | D7: =B7 -> 2.27886877 | E7: =IF(D7<1000,D7,ROUND(D7,-2)) -> 2.27886877
A8: 5 | B8: 6.990395 | D8: =B8 -> 6.990395 | E8: 6.990395
A9: 5.8 | B9: 8.1088582 | D9: 8.1088582 | E9: 8.1088582
A10: 9 | B10: 12.582711 | D10: 12.582711 | E10: 12.582711
A11: 10.5 | B11: 14.6798295 | D11: 14.6798295 | E11: 14.6798295
A12: 12.22 | B12: 17.08452538 | D12: 17.08452538 | E12: 17.08452538
A13: 12.65 | B13: 17.68569935 | D13: 17.68569935 | E13: 17.68569935
A14: 13.39 | B14: 18.72027781 | D14: 18.72027781 | E14: 18.72027781
A15: 13.75 | B15: 19.22358625 | D15: 19.22358625 | E15: 19.22358625
A16: 14.46 | B16: 20.21622234 | D16: 20.21622234 | E16: 20.21622234
A17: 15.2 | B17: 21.2508008 | D17: 21.2508008 | E17: 21.2508008
A18: 15.5 | B18: 21.6702245 | D18: 21.6702245 | E18: 21.6702245
A19: 17 | B19: 23.767343 | D19: 23.767343 | E19: 23.767343
A20: 18.5 | B20: 25.8644615 | D20: 25.8644615 | E20: 25.8644615
A21: 19 | B21: 26.563501 | D21: 26.563501 | E21: 26.563501
A22: 21 | B22: 29.359659 | D22: 29.359659 | E22: 29.359659
A23: 23 | B23: 32.155817 | D23: 32.155817 | E23: 32.155817
A24: 24.97 | B24: 34.91003263 | D24: 34.91003263 | E24: 34.91003263
A25: 28 | B25: 39.146212 | D25: 39.146212 | E25: 39.146212
A26: 30 | B26: 41.94237 | D26: 41.94237 | E26: 41.94237
A27: 33.29 | B27: 46.54204991 | D27: 46.54204991 | E27: 46.54204991
A28: 42 | B28: 58.719318 | D28: 58.719318 | E28: 58.719318
A29: 61.26 | B29: 85.64631954 | D29: 85.64631954 | E29: 85.64631954
A30: 62 | B30: 86.680898 | D30: 86.680898 | E30: 86.680898
A31: 68.32 | B31: 95.51675728 | D31: 95.51675728 | E31: 95.51675728
A32: 75.13 | B32: 105.0376753 | D32: 105.0376753 | E32: 105.0376753
A33: 80.38 | B33: 112.37759 | D33: 112.37759 | E33: 112.37759
A34: 136.64 | B34: 191.0335146 | D34: =B34 -> 191.0335146 | E34: 191.0335146
A35: 143.99 | B35: 201.3093952 | D35: =B35 -> 201.3093952 | E35: 201.3093952
A36: 150.61 | B36: 210.5646782 | D36: 210.5646782 | E36: 210.5646782
A37: 164 | B37: 229.284956 | D37: 229.284956 | E37: 229.284956
A38: 170 | B38: 237.67343 | D38: 237.67343 | E38: 237.67343
A39: 190 | B39: 265.63501 | D39: 265.63501 | E39: =IF(D39<1000,D39,ROUND(D39,-2)) -> 265.63501
A40: 195 | B40: 272.625405 | D40: 272.625405 | E40: 272.625405
A41: 202 | B41: 282.411958 | D41: 282.411958 | E41: 282.411958
A42: 260 | B42: 363.50054 | D42: 363.50054 | E42: 363.50054
A43: 278 | B43: 388.665962 | D43: 388.665962 | E43: 388.665962
A44: 300.84 | B44: 420.5980864 | D44: 420.5980864 | E44: 420.5980864
A45: 350 | B45: 489.32765 | D45: 489.32765 | E45: 489.32765
A46: 380 | B46: 531.27002 | D46: 531.27002 | E46: 531.27002
A47: 398.95 | B47: 557.763617 | D47: 557.763617 | E47: 557.763617
A48: 420 | B48: 587.19318 | D48: 587.19318 | E48: 587.19318
A49: 465 | B49: 650.106735 | D49: 650.106735 | E49: 650.106735
A50: 490 | B50: 685.05871 | D50: 685.05871 | E50: 685.05871
A51: 502 | B51: 701.835658 | D51: 701.835658 | E51: 701.835658
A52: 559 | B52: 781.526161 | D52: 781.526161 | E52: 781.526161
A53: 597 | B53: 834.653163 | D53: 834.653163 | E53: 834.653163
A54: 700 | B54: 978.6553 | C54: =VALUE(B54)/12 -> 81.55460833 | D54: 978.6553 | E54: =IF(D54<1000,D54,ROUND(D54,-2)) -> 978.6553 | F54: =E54-D54 -> 0
A55: 750 | B55: 1048.55925 | C55: 87.3799375 | D55: 1048.55925 | E55: =IF(D55<1000,D55,ROUND(D55,-2)) -> 1000 | F55: -48.55925
A56: 800 | B56: 1118.4632 | C56: 93.20526667 | D56: 1118.4632 | E56: =IF(D56<1000,D56,ROUND(D56,-2)) -> 1100 | F56: -18.4632
A57: 842.75 | B57: 1178.231077 | C57: 98.1859231 | D57: 1178.231077 | E57: 1200 | F57: 21.76892275
A58: 868 | B58: 1213.532572 | C58: 101.1277143 | D58: 1213.532572 | E58: 1200 | F58: -13.532572
A59: 917.14 | B59: 1282.234174 | C59: 106.8528478 | D59: =B59 -> 1282.234174 | E59: 1300 | F59: 17.76582594
A60: 920 | B60: 1286.23268 | C60: 107.1860567 | D60: 1286.23268 | E60: 1300 | F60: 13.76732
A61: 925 | B61: 1293.223075 | C61: 107.7685896 | D61: 1293.223075 | E61: 1300 | F61: 6.776925
A62: 950 | B62: =IF(A62<1000,$B$1*A62,ROUND($B$1*A62,0)) -> 1328.17505 | C62: 110.6812542 | D62: 1328.17505 | E62: 1300 | F62: -28.17505
A63: 1000 | B63: =IF(A63<1000,$B$1*A63,ROUND($B$1*A63,0)) -> 1398 | C63: 116.5 | D63: 1398 | E63: 1400 | F63: 2
A64: 1050 | B64: =IF(A64<1000,$B$1*A64,ROUND($B$1*A64,0)) -> 1468 | C64: 122.3333333 | D64: 1468 | E64: 1500 | F64: 32
A65: 1100 | B65: =IF(A65<1000,$B$1*A65,ROUND($B$1*A65,0)) -> 1538 | C65: 128.1666667 | D65: 1538 | E65: 1500 | F65: -38
A66: 1200 | B66: 1678 | C66: 139.8333333 | D66: 1678 | E66: 1700 | F66: 22
A67: 1245 | B67: 1741 | C67: 145.0833333 | D67: =B67 -> 1741 | E67: 1700 | F67: =E67-D67 -> -41
A68: 1300 | B68: 1818 | C68: 151.5 | D68: 1818 | E68: 1800 | F68: -18
A69: 1327 | B69: 1855 | C69: 154.5833333 | D69: 1855 | E69: 1900 | F69: 45
A70: 1400 | B70: 1957 | C70: 163.0833333 | D70: 1957 | E70: 2000 | F70: 43
A71: 1500 | B71: 2097 | C71: 174.75 | D71: 2097 | E71: 2100 | F71: 3
A72: 1600 | B72: 2237 | C72: 186.4166667 | D72: 2237 | E72: 2200 | F72: -37
A73: 1700 | B73: 2377 | C73: 198.0833333 | D73: 2377 | E73: 2400 | F73: 23
A74: 1750 | B74: 2447 | C74: 203.9166667 | D74: 2447 | E74: 2400 | F74: -47
A75: 1800 | B75: 2517 | C75: 209.75 | D75: 2517 | E75: 2500 | F75: -17
A76: 1900 | B76: 2656 | C76: 221.3333333 | D76: 2656 | E76: 2700 | F76: 44
A77: 2000 | B77: 2796 | C77: 233 | D77: 2796 | E77: 2800 | F77: 4
A78: 2050 | B78: 2866 | C78: 238.8333333 | D78: 2866 | E78: 2900 | F78: 34
A79: 2100 | B79: 2936 | C79: 244.6666667 | D79: 2936 | E79: 2900 | F79: -36
A80: 2145 | B80: 2999 | C80: 249.9166667 | D80: 2999 | E80: 3000 | F80: 1
A81: 2150 | B81: 3006 | C81: 250.5 | D81: 3006 | E81: 3000 | F81: -6
A82: 2200 | B82: 3076 | C82: 256.3333333 | D82: 3076 | E82: 3100 | F82: 24
A83: 2300 | B83: 3216 | C83: 268 | D83: 3216 | E83: 3200 | F83: -16
A84: 2400 | B84: 3355 | C84: 279.5833333 | D84: 3355 | E84: 3400 | F84: 45
A85: 2450 | B85: 3425 | C85: 285.4166667 | D85: 3425 | E85: 3400 | F85: -25
A86: 2500 | B86: 3495 | C86: 291.25 | D86: 3495 | E86: 3500 | F86: 5
A87: 2600 | B87: 3635 | C87: 302.9166667 | D87: 3635 | E87: 3600 | F87: -35
A88: 2700 | B88: 3775 | C88: 314.5833333 | D88: 3775 | E88: 3800 | F88: 25
A89: 2730 | B89: 3817 | C89: 318.0833333 | D89: 3817 | E89: 3800 | F89: -17
A90: 2800 | B90: 3915 | C90: 326.25 | D90: 3915 | E90: 3900 | F90: -15
A91: 2900 | B91: 4054 | C91: 337.8333333 | D91: 4054 | E91: 4100 | F91: 46
A92: 3000 | B92: 4194 | C92: 349.5 | D92: 4194 | E92: 4200 | F92: 6
A93: 3100 | B93: 4334 | C93: 361.1666667 | D93: 4334 | E93: 4300 | F93: -34
A94: 3200 | B94: 4474 | C94: 372.8333333 | D94: 4474 | E94: 4500 | F94: 26
A95: 3300 | B95: 4614 | C95: 384.5 | D95: 4614 | E95: 4600 | F95: -14
A96: 3400 | B96: 4753 | C96: 396.0833333 | D96: 4753 | E96: 4800 | F96: 47
A97: 3500 | B97: 4893 | C97: 407.75 | D97: 4893 | E97: 4900 | F97: 7
A98: 3600 | B98: 5033 | C98: 419.4166667 | D98: 5033 | E98: 5000 | F98: -33
A99: 3700 | B99: 5173 | C99: 431.0833333 | D99: 5173 | E99: 5200 | F99: 27
A100: 3800 | B100: 5313 | C100: 442.75 | D100: 5313 | E100: 5300 | F100: -13
A101: 3900 | B101: 5453 | C101: 454.4166667 | D101: 5453 | E101: 5500 | F101: 47
A102: 4000 | B102: 5592 | C102: 466 | D102: 5592 | E102: 5600 | F102: 8
A103: 4100 | B103: 5732 | C103: 477.6666667 | D103: 5732 | E103: 5700 | F103: -32
A104: 4200 | B104: 5872 | C104: 489.3333333 | D104: 5872 | E104: 5900 | F104: 28
A105: 4226.1 | B105: 5908 | C105: 492.3333333 | D105: 5908 | E105: 5900 | F105: -8
A106: 4300 | B106: 6012 | C106: 501 | D106: 6012 | E106: 6000 | F106: -12
A107: 4400 | B107: 6152 | C107: 512.6666667 | D107: 6152 | E107: 6200 | F107: 48
A108: 4430 | B108: 6193 | C108: 516.0833333 | D108: 6193 | E108: 6200 | F108: 7
A109: 4500 | B109: 6291 | C109: 524.25 | D109: 6291 | E109: 6300 | F109: 9
A110: 4600 | B110: 6431 | C110: 535.9166667 | D110: 6431 | E110: 6400 | F110: -31
A111: 4700 | B111: 6571 | C111: 547.5833333 | D111: 6571 | E111: 6600 | F111: 29
A112: 1770 | B112: 2475 | C112: 206.25 | D112: 2475 | E112: 2500 | F112: 25
A113: 4800 | B113: 6711 | C113: 559.25 | D113: 6711 | E113: 6700 | F113: -11
A114: 4900 | B114: 6851 | C114: 570.9166667 | D114: 6851 | E114: 6900 | F114: 49
A115: 4930 | B115: 6893 | C115: 574.4166667 | D115: 6893 | E115: 6900 | F115: 7
A116: 5000 | B116: 6990 | C116: 582.5 | D116: 6990 | E116: 7000 | F116: 10
A117: 5100 | B117: 7130 | C117: 594.1666667 | D117: 7130 | E117: 7100 | F117: -30
A118: 5200 | B118: 7270 | C118: =VALUE(B118)/12 -> 605.8333333 | D118: 7270 | E118: 7300 | F118: 30
A119: 5300 | B119: 7410 | C119: 617.5 | D119: 7410 | E119: 7400 | F119: -10
A120: 5318 | B120: 7435 | C120: 619.5833333 | D120: 7435 | E120: =IF(D120<1000,D120,ROUND(D120,-2)) -> 7400 | F120: -35
A121: 5400 | B121: 7550 | C121: 629.1666667 | D121: 7550 | E121: 7600 | F121: 50
A122: 5420.91 | B122: 7579 | C122: 631.5833333 | D122: 7579 | E122: 7600 | F122: 21
A123: 5500 | B123: 7689 | C123: 640.75 | D123: =B123 -> 7689 | E123: 7700 | F123: =E123-D123 -> 11
A124: 5600 | B124: 7829 | C124: 652.4166667 | D124: 7829 | E124: 7800 | F124: -29
A125: 5700 | B125: 7969 | C125: 664.0833333 | D125: 7969 | E125: 8000 | F125: 31
A126: 5770.78 | B126: 8068 | C126: 672.3333333 | D126: 8068 | E126: 8100 | F126: 32
A127: 5800 | B127: 8109 | C127: 675.75 | D127: 8109 | E127: 8100 | F127: -9
A128: 5900 | B128: 8249 | C128: 687.4166667 | D128: 8249 | E128: 8200 | F128: -49
A129: 6000 | B129: =IF(A129<1000,$B$1*A129,ROUND($B$1*A129,0)) -> 8388 | C129: 699 | D129: 8388 | E129: 8400 | F129: 12
A130: 6078 | B130: 8498 | C130: 708.1666667 | D130: 8498 | E130: 8500 | F130: 2
A131: 6100 | B131: 8528 | C131: 710.6666667 | D131: 8528 | E131: 8500 | F131: -28
A132: 6140 | B132: 8584 | C132: 715.3333333 | D132: 8584 | E132: 8600 | F132: 16
A133: 6200 | B133: 8668 | C133: 722.3333333 | D133: 8668 | E133: 8700 | F133: 32
A134: 6290.15 | B134: 8794 | C134: 732.8333333 | D134: 8794 | E134: 8800 | F134: 6
A135: 6300 | B135: 8808 | C135: 734 | D135: 8808 | E135: 8800 | F135: -8
A136: 6400 | B136: 8948 | C136: 745.6666667 | D136: 8948 | E136: 8900 | F136: -48
A137: 6500 | B137: 9088 | C137: 757.3333333 | D137: 9088 | E137: 9100 | F137: 12
A138: 6600 | B138: 9227 | C138: 768.9166667 | D138: 9227 | E138: 9200 | F138: -27
A139: 6700 | B139: 9367 | C139: 780.5833333 | D139: 9367 | E139: 9400 | F139: 33
A140: 6743.33 | B140: 9428 | C140: 785.6666667 | D140: 9428 | E140: 9400 | F140: -28
A141: 6800 | B141: 9507 | C141: 792.25 | D141: 9507 | E141: 9500 | F141: -7
A142: 6900 | B142: 9647 | C142: 803.9166667 | D142: 9647 | E142: 9600 | F142: -47
A143: 7000 | B143: 9787 | C143: 815.5833333 | D143: 9787 | E143: 9800 | F143: 13
A144: 7100 | B144: 9926 | C144: 827.1666667 | D144: 9926 | E144: 9900 | F144: -26
A145: 7200 | B145: 10066 | C145: 838.8333333 | D145: 10066 | E145: 10100 | F145: 34
A146: 7300 | B146: 10206 | C146: 850.5 | D146: 10206 | E146: 10200 | F146: -6
A147: 7335.23 | B147: 10255 | C147: 854.5833333 | D147: 10255 | E147: 10300 | F147: 45
A148: 7400 | B148: 10346 | C148: 862.1666667 | D148: 10346 | E148: 10300 | F148: -46
A149: 7500 | B149: 10486 | C149: 873.8333333 | D149: 10486 | E149: 10500 | F149: 14
A150: 7600 | B150: 10625 | C150: 885.4166667 | D150: 10625 | E150: 10600 | F150: -25
A151: 7700 | B151: 10765 | C151: 897.0833333 | D151: 10765 | E151: 10800 | F151: 35
A152: 7800 | B152: 10905 | C152: 908.75 | D152: 10905 | E152: 10900 | F152: -5
A153: 7900 | B153: 11045 | C153: 920.4166667 | D153: 11045 | E153: 11000 | F153: -45
A154: 8000 | B154: 11185 | C154: 932.0833333 | D154: 11185 | E154: 11200 | F154: 15
A155: 8100 | B155: 11324 | C155: 943.6666667 | D155: 11324 | E155: 11300 | F155: -24
A156: 8200 | B156: 11464 | C156: 955.3333333 | D156: 11464 | E156: 11500 | F156: 36
A157: 8300 | B157: 11604 | C157: 967 | D157: 11604 | E157: 11600 | F157: -4
A158: 8400 | B158: 11744 | C158: 978.6666667 | D158: 11744 | E158: 11700 | F158: -44
A159: 8500 | B159: 11884 | C159: 990.3333333 | D159: 11884 | E159: 11900 | F159: 16
A160: 8600 | B160: 12023 | C160: 1001.916667 | D160: 12023 | E160: 12000 | F160: -23
A161: 8700 | B161: 12163 | C161: 1013.583333 | D161: 12163 | E161: 12200 | F161: 37
A162: 8800 | B162: 12303 | C162: 1025.25 | D162: 12303 | E162: 12300 | F162: -3
A163: 8900 | B163: 12443 | C163: 1036.916667 | D163: 12443 | E163: 12400 | F163: -43
A164: 9000 | B164: 12583 | C164: 1048.583333 | D164: 12583 | E164: 12600 | F164: 17
A165: 9100 | B165: 12723 | C165: 1060.25 | D165: 12723 | E165: 12700 | F165: -23
A166: 9200 | B166: 12862 | C166: 1071.833333 | D166: 12862 | E166: 12900 | F166: 38
A167: 9300 | B167: 13002 | C167: 1083.5 | D167: 13002 | E167: 13000 | F167: -2
A168: 9400 | B168: 13142 | C168: 1095.166667 | D168: 13142 | E168: 13100 | F168: -42
A169: 9450 | B169: 13212 | C169: 1101 | D169: 13212 | E169: 13200 | F169: -12
A170: 9500 | B170: 13282 | C170: 1106.833333 | D170: 13282 | E170: 13300 | F170: 18
A171: 9600 | B171: 13422 | C171: 1118.5 | D171: 13422 | E171: 13400 | F171: -22
A172: 9700 | B172: 13561 | C172: 1130.083333 | D172: 13561 | E172: 13600 | F172: 39
A173: 9800 | B173: 13701 | C173: 1141.75 | D173: 13701 | E173: 13700 | F173: -1
A174: 9900 | B174: 13841 | C174: 1153.416667 | D174: 13841 | E174: 13800 | F174: -41
A175: 10000 | B175: 13981 | C175: 1165.083333 | D175: 13981 | E175: 14000 | F175: 19
A176: 10600 | B176: 14820 | C176: 1235 | D176: 14820 | E176: 14800 | F176: -20
A177: 10800 | B177: 15099 | C177: 1258.25 | D177: 15099 | E177: 15100 | F177: 1
A178: 11000 | B178: 15379 | C178: 1281.583333 | D178: 15379 | E178: 15400 | F178: 21
A179: 11200 | B179: 15658 | C179: 1304.833333 | D179: 15658 | E179: 15700 | F179: 42
A180: 11300 | B180: 15798 | C180: 1316.5 | D180: 15798 | E180: 15800 | F180: 2
A181: 11500 | B181: 16078 | C181: 1339.833333 | D181: 16078 | E181: 16100 | F181: 22
A182: 11600 | B182: 16218 | C182: =VALUE(B182)/12 -> 1351.5 | D182: 16218 | E182: 16200 | F182: -18
A183: 11700 | B183: 16358 | C183: 1363.166667 | D183: 16358 | E183: 16400 | F183: 42
A184: 11800 | B184: 16497 | C184: 1374.75 | D184: 16497 | E184: =IF(D184<1000,D184,ROUND(D184,-2)) -> 16500 | F184: 3
A185: 11900 | B185: 16637 | C185: 1386.416667 | D185: 16637 | E185: 16600 | F185: -37
A186: 12000 | B186: 16777 | C186: 1398.083333 | D186: 16777 | E186: 16800 | F186: 23
A187: 12100 | B187: 16917 | C187: 1409.75 | D187: =B187 -> 16917 | E187: 16900 | F187: =E187-D187 -> -17
A188: 12200 | B188: 17057 | C188: 1421.416667 | D188: 17057 | E188: 17100 | F188: 43
A189: 12300 | B189: 17196 | C189: 1433 | D189: 17196 | E189: 17200 | F189: 4
A190: 12400 | B190: 17336 | C190: 1444.666667 | D190: 17336 | E190: 17300 | F190: -36
A191: 12500 | B191: 17476 | C191: 1456.333333 | D191: 17476 | E191: 17500 | F191: 24
A192: 12600 | B192: 17616 | C192: 1468 | D192: 17616 | E192: 17600 | F192: -16
A193: 12700 | B193: =IF(A193<1000,$B$1*A193,ROUND($B$1*A193,0)) -> 17756 | C193: 1479.666667 | D193: 17756 | E193: 17800 | F193: 44
A194: 12800 | B194: 17895 | C194: 1491.25 | D194: 17895 | E194: 17900 | F194: 5
A195: 12900 | B195: 18035 | C195: 1502.916667 | D195: 18035 | E195: 18000 | F195: -35
A196: 13000 | B196: 18175 | C196: 1514.583333 | D196: 18175 | E196: 18200 | F196: 25
A197: 13200 | B197: 18455 | C197: 1537.916667 | D197: 18455 | E197: 18500 | F197: 45
A198: 13400 | B198: 18734 | C198: 1561.166667 | D198: 18734 | E198: 18700 | F198: -34
A199: 13500 | B199: 18874 | C199: 1572.833333 | D199: 18874 | E199: 18900 | F199: 26
A200: 13700 | B200: 19154 | C200: 1596.166667 | D200: 19154 | E200: 19200 | F200: 46
... 195 more rows

Sheet reguleringsprocenter (hidden)
B2: Reguleringsprocenter | D2: pensionsudbygning
B3: Valgt: | C3: =VLOOKUP(Forside!K11,reguleringsprocenter!B4:D15,2,TRUE) -> 1.498304
B4: 2019-04-01 | C4: 1.377253 | D4: 1
B5: 2019-10-01 | C5: 1.390861 | D5: 1
B6: 2020-01-01 | C6: 1.412411 | D6: 1
B7: 2020-04-01 | C7: 1.417798 | D7: 1
B8: 2020-10-01 | C8: 1.428511 | D8: 1
B9: 2021-04-01 | C9: 1.442796 | D9: 1
B10: 2021-10-01 | C10: 1.456933 | D10: 1
B11: 2022-04-01 | C11: 1.456933 | D11: 1
B12: 2022-10-01 | C12: 1.494018 | D12: 1
B13: 2023-04-01 | C13: 1.498304 | D13: 1
B14: 2023-10-01 | C14: 1.516971 | D14: 1
B18: Liste, opslag niveauer
B20: 2023-10-01
B21: 2023-04-01
B22: 2022-10-01
B23: 2022-04-01
B24: 2021-10-01
B25: 2021-04-01
B26: 2020-10-01
B27: 2020-04-01
B28: 2020-01-01
B29: 2019-10-01
B30: 2019-04-01

Sheet Lønark (hidden)
A1: 1 | B1: 2 | C1: 3 | D1: 4 | E1: 5 | F1: 6 | G1: 7 | H1: 8 | I1: 9 | J1: 10 | K1: 11 | L1: 12 | M1: 13 | N1: 14 | O1: 15 | P1: 16 | Q1: 17 | R1: 18 | S1: 19 | T1: 20 | U1: 21 | V1: 22 | W1: 23 | X1: 24 | Y1: 25 | Z1: 26 | AA1: 27 | AB1: 28 | AC1: 29 | AD1: 30 | AE1: 31 | AF1: 32 | AG1: 33 | AH1: 34 | AI1: 35 | AJ1: 36 | AK1: 37 | AL1: 38 | AM1: 39 | AN1: 40 | AO1: 41 | AP1: 42 | AQ1: 43 | AR1: 44 | AS1: 45 | AT1: 46 | AU1: 47 | AV1: 48 | AW1: 49 | AX1: 50 | AY1: 51 | AZ1: 52 | BA1: 53 | BB1: 54 | BC1: 55 | BD1: 56
A2: Næstved | X2: Løn | Y2: Årsløn | AB2: Ureguleret ikke-pensionsgivende tillæg | AF2: Årsløn ialt | CH2: Lavtlønsprojekt
X3: Løn | Y3: Årsløn | AB3: Ureguleret ikke-pensionsgivende tillæg | AL3: Områdetillæg inkl. regulering | AQ3: Årsløn ialt | AW3: Pensionsgivende løn | BF3: Pensionsgivende løn | BL3: Løn | BM3: timelønninger | BS3: Løn | BT3: timelønninger + 50% | BZ3: Løn | CA3: søndagstillæg - 50% | CH3: 2019-03-31 | CI3: 0 | CJ3: 0
B4: Månedsløn, løngrupper | E4: Lønniveau: | F4: =VLOOKUP(beregningsdato,regpct_tabel,1,TRUE) -> 2023-04-01 | H4: Optrapning fra: | M4: Pensionsgivende løn | S4: Pensionsgivende løn, optrapning fra: | X4: trin | Y4: Grundsats | Z4: %-reg. | AA4: Sats | AB4: Omr 1 | AC4: Omr 2 | AD4: Omr 3 | AE4: Omr 4 | AL4: 1 | AM4: 2 | AN4: 3 | AO4: 4 | AQ4: Omr 0 | AR4: Omr 1 | AS4: Omr 2 | AT4: Omr 3 | AU4: Omr 4 | AW4: Grundsats | AX4: %-reg. | AY4: Sats | BA4: Pensionsudbygningspct: | BD4: =VLOOKUP(F4,regpct_tabel,3,FALSE) -> 1 | BF4: Omr 0 | BG4: Omr 1 | BH4: Omr 2 | BI4: Omr 3 | BJ4: Omr 4 | BL4: trin | BM4: Omr 0 | BN4: Omr 1 | BO4: Omr 2 | BP4: Omr 3 | BQ4: Omr 4 | BS4: trin | BT4: Omr 0 | BU4: Omr 1 | BV4: Omr 2 | BW4: Omr 3 | BX4: Omr 4 | BZ4: trin | CA4: Omr 0 | CB4: Omr 1 | CC4: Omr 2 | CD4: Omr 3 | CE4: Omr 4 | CH4: 2019-04-01 | CI4: 382 | CJ4: 0
B5: 0 | C5: 1 | D5: 2 | E5: 3 | F5: 4 | H5: 0->1 | I5: 1->2 | J5: 2->3 | M5: 0 | N5: 1 | O5: 2 | P5: 3 | Q5: 4 | S5: 0->1 | T5: 1->2 | U5: 2->3 | V5: 3->4 | Y5: =VLOOKUP(beregningsdato,Lavtløn,2,TRUE) -> 1035 | Z5: =valgt_regulering-1 -> 0.498304 | AA5: 2019-04-01 | AB5: 2022-04-01 | AC5: =VLOOKUP(beregningsdato,Lavtløn,3,TRUE) -> 653 | AL5: =IF(beregningsdato<40087,0,regulering) -> 0.498304 | AM5: =IF(beregningsdato<40087,0,5) -> 5 | CH5: 2022-04-01 | CI5: =CI4+CJ5 -> 1035 | CJ5: 653
A6: 1 | B6: =AQ6/12 -> 18378.41667 | C6: 18638.33333 | D6: 18818.33333 | E6: 19078.33333 | F6: 19258.33333 | H6: =ROUND(AQ6+(AR6-AQ6)/3*faktor,0)/12 -> 20200647.67 | I6: =ROUND(AR6+(AS6-AR6)/3*faktor,0)/12 -> 13995458.33 | J6: =ROUND(AS6+(AT6-AS6)/3*faktor,0)/12 -> 20207558.33 | L6: 1 | M6: =BF6/12 -> 18378.41667 | N6: 18638.33333 | O6: 18818.33333 | P6: 19078.33333 | Q6: 19258.33333 | S6: =(BF6+ROUND((BG6-BF6)/3*faktor,0))/12 -> 20200647.67 | T6: =(BG6+ROUND((BH6-BG6)/3*faktor,0))/12 -> 13995458.33 | U6: =(BH6+ROUND((BI6-BH6)/3*faktor,0))/12 -> 20207558.33 | V6: =(BI6+ROUND((BJ6-BI6)/3*faktor,0))/12 -> 13995898.33 | X6: 1 | Y6: 147194 | Z6: =ROUND(Y6*regulering,0) -> 73347 | AA6: =Y6+Z6 -> 220541 | AB6: 2585 | AC6: 4374 | AD6: 6959 | AE6: 8748 | AG6: 2082 | AH6: 3523 | AI6: 5606 | AJ6: 7047 | AL6: =ROUND(VLOOKUP($X6,$X:$AJ,(4+AL$4)+$AM$5)*(1+$AL$5),0) -> 3119 | AM6: 5279 | AN6: 8399 | AO6: 10559 | AQ6: =$AA6 -> 220541 | AR6: =$AA6+AL6 -> 223660 | AS6: 225820 | AT6: 228940 | AU6: 231100 | AW6: 147194 | AX6: =AW6*regulering -> 73347.35898 | AY6: =ROUND(SUM(AW6:AX6),0) -> 220541 | BA6: =ROUND(AL6*udbygningspct,0) -> 3119 | BB6: =ROUND(AM6*udbygningspct,0) -> 5279 | BC6: =ROUND(AN6*udbygningspct,0) -> 8399 | BD6: =ROUND(AO6*udbygningspct,0) -> 10559 | BF6: =AY6 -> 220541 | BG6: =$BF6+BA6 -> 223660 | BH6: =$BF6+BB6 -> 225820 | BI6: 228940 | BJ6: 231100 | BL6: 1 | BM6: =AQ6/1924 -> 114.6262994 | BN6: 116.2474012 | BO6: 117.3700624 | BP6: 118.991684 | BQ6: 120.1143451 | BS6: 1 | BT6: =AQ6/1924*1.5 -> 171.9394491 | BU6: =AR6/1924*1.5 -> 174.3711019 | BV6: =AS6/1924*1.5 -> 176.0550936 | BW6: =AT6/1924*1.5 -> 178.487526 | BX6: =AU6/1924*1.5 -> 180.1715177 | BZ6: 1 | CA6: =AQ6/1924/2 -> 57.31314969 | CB6: 58.12370062 | CC6: 58.68503119 | CD6: 59.495842 | CE6: 60.05717256
A7: 2 | B7: 18660.75 | C7: 18927.08333 | D7: 19111.33333 | E7: 19377.66667 | F7: 19562 | H7: 20699177.75 | I7: 14325755.33 | J7: 20699628.33 | L7: 2 | M7: 18660.75 | N7: 18927.08333 | O7: 19111.33333 | P7: 19377.66667 | Q7: 19562 | S7: 20699177.75 | T7: 14325755.33 | U7: 20699628.33 | V7: 14332676.67 | X7: 2 | Y7: 149455 | Z7: 74474 | AA7: 223929 | AB7: 2648 | AC7: 4481 | AD7: 7128 | AE7: 8961 | AG7: 2133 | AH7: 3609 | AI7: 5742 | AJ7: 7218 | AL7: 3196 | AM7: 5407 | AN7: 8603 | AO7: 10815 | AQ7: =$AA7 -> 223929 | AR7: 227125 | AS7: 229336 | AT7: 232532 | AU7: 234744 | AW7: 149455 | AX7: =AW7*regulering -> 74474.02432 | AY7: =ROUND(SUM(AW7:AX7),0) -> 223929 | BA7: 3196 | BB7: 5407 | BC7: 8603 | BD7: 10815 | BF7: =AY7 -> 223929 | BG7: 227125 | BH7: 229336 | BI7: 232532 | BJ7: 234744 | BL7: 2 | BM7: 116.3872141 | BN7: 118.0483368 | BO7: 119.1975052 | BP7: 120.8586279 | BQ7: 122.008316 | BS7: 2 | BT7: =AQ7/1924*1.5 -> 174.5808212 | BU7: 177.0725052 | BV7: 178.7962578 | BW7: 181.2879418 | BX7: 183.012474 | BZ7: 2 | CA7: 58.19360707 | CB7: 59.0241684 | CC7: 59.5987526 | CD7: 60.42931393 | CE7: 61.004158
A8: 3 | B8: 18950.66667 | C8: 19223.33333 | D8: 19412.25 | E8: 19685 | F8: 19874 | H8: 21191244.67 | I8: 14688413.58 | J8: 21198177 | L8: 3 | M8: 18950.66667 | N8: 19223.33333 | O8: 19412.25 | P8: 19685 | Q8: 19874 | S8: 21191244.67 | T8: 14688413.58 | U8: 21198177 | V8: 14695346 | X8: 3 | Y8: 151777 | Z8: 75631 | AA8: 227408 | AB8: 2711 | AC8: 4590 | AD8: 7301 | AE8: 9180 | AG8: 2184 | AH8: 3697 | AI8: 5881 | AJ8: 7395 | AL8: 3272 | AM8: 5539 | AN8: 8812 | AO8: 11080 | AQ8: 227408 | AR8: 230680 | AS8: 232947 | AT8: 236220 | AU8: 238488 | AW8: 151777 | AX8: 75631.08621 | AY8: 227408 | BA8: 3272 | BB8: 5539 | BC8: 8812 | BD8: 11080 | BF8: 227408 | BG8: 230680 | BH8: 232947 | BI8: 236220 | BJ8: 238488 | BL8: 3 | BM8: 118.1954262 | BN8: 119.8960499 | BO8: 121.0743243 | BP8: 122.7754678 | BQ8: 123.954262 | BS8: 3 | BT8: 177.2931393 | BU8: 179.8440748 | BV8: 181.6114865 | BW8: 184.1632017 | BX8: 185.9313929 | BZ8: 3 | CA8: 59.0977131 | CB8: 59.94802495 | CC8: 60.53716216 | CD8: 61.38773389 | CE8: 61.97713098
A9: 4 | B9: 19248.58333 | C9: 19528.16667 | D9: 19721.58333 | E9: 20001.08333 | F9: 20194.5 | H9: 21728614.83 | I9: 15038138.92 | J9: 21722617.08 | L9: 4 | M9: 19248.58333 | N9: 19528.16667 | O9: 19721.58333 | P9: 20001.08333 | Q9: 20194.5 | S9: 21728614.83 | T9: 15038138.92 | U9: 21722617.08 | V9: 15038611.83 | X9: 4 | Y9: 154163 | Z9: 76820 | AA9: 230983 | AB9: 2779 | AC9: 4703 | AD9: 7482 | AE9: 9405 | AG9: 2239 | AH9: 3788 | AI9: 6027 | AJ9: 7576 | AL9: 3355 | AM9: 5676 | AN9: 9030 | AO9: 11351 | AQ9: 230983 | AR9: 234338 | AS9: 236659 | AT9: 240013 | AU9: 242334 | AW9: 154163 | AX9: 76820.03955 | AY9: 230983 | BA9: 3355 | BB9: 5676 | BC9: 9030 | BD9: 11351 | BF9: 230983 | BG9: 234338 | BH9: 236659 | BI9: 240013 | BJ9: 242334 | BL9: 4 | BM9: 120.0535343 | BN9: 121.7972973 | BO9: 123.0036383 | BP9: 124.7468815 | BQ9: 125.9532225 | BS9: 4 | BT9: 180.0803015 | BU9: 182.6959459 | BV9: 184.5054574 | BW9: 187.1203222 | BX9: 188.9298337 | BZ9: 4 | CA9: 60.02676715 | CB9: 60.89864865 | CC9: 61.50181913 | CD9: 62.37344075 | CE9: 62.97661123
A10: 5 | B10: 19554.58333 | C10: 19840.91667 | D10: 20039.25 | E10: 20325.58333 | F10: 20523.75 | H10: 22253051.58 | I10: 15420225.92 | J10: 22253536.25 | L10: 5 | M10: 19554.58333 | N10: 19840.91667 | O10: 20039.25 | P10: 20325.58333 | Q10: 20523.75 | S10: 22253051.58 | T10: 15420225.92 | U10: 22253536.25 | V10: 15407769.08 | X10: 5 | Y10: 156614 | Z10: 78041 | AA10: 234655 | AB10: 2847 | AC10: 4819 | AD10: 7666 | AE10: 9636 | AG10: 2293 | AH10: 3882 | AI10: 6175 | AJ10: 7762 | AL10: 3436 | AM10: 5816 | AN10: 9252 | AO10: 11630 | AQ10: 234655 | AR10: 238091 | AS10: 240471 | AT10: 243907 | AU10: 246285 | AW10: 156614 | AX10: 78041.38266 | AY10: 234655 | BA10: 3436 | BB10: 5816 | BC10: 9252 | BD10: 11630 | BF10: 234655 | BG10: 238091 | BH10: 240471 | BI10: 243907 | BJ10: 246285 | BL10: 5 | BM10: 121.9620582 | BN10: 123.747921 | BO10: 124.9849272 | BP10: 126.77079 | BQ10: 128.0067568 | BS10: 5 | BT10: 182.9430873 | BU10: 185.6218815 | BV10: 187.4773909 | BW10: 190.156185 | BX10: 192.0101351 | BZ10: 5 | CA10: 60.98102911 | CB10: 61.8739605 | CC10: 62.49246362 | CD10: 63.38539501 | CE10: 64.00337838
A11: 6 | B11: 19869.41667 | C11: 20162.83333 | D11: 20366 | E11: 20659.25 | F11: 20862.41667 | H11: 22803380.17 | I11: 15795851.33 | J11: 22790935.25 | L11: 6 | M11: 19869.41667 | N11: 20162.83333 | O11: 20366 | P11: 20659.25 | Q11: 20862.41667 | S11: 22803380.17 | T11: 15795851.33 | U11: 22790935.25 | V11: 15796347.75 | X11: 6 | Y11: 159135 | Z11: 79298 | AA11: 238433 | AB11: 2917 | AC11: 4937 | AD11: 7854 | AE11: 9873 | AG11: 2350 | AH11: 3977 | AI11: 6326 | AJ11: 7953 | AL11: 3521 | AM11: 5959 | AN11: 9478 | AO11: 11916 | AQ11: 238433 | AR11: 241954 | AS11: 244392 | AT11: 247911 | AU11: 250349 | AW11: 159135 | AX11: 79297.60704 | AY11: 238433 | BA11: 3521 | BB11: 5959 | BC11: 9478 | BD11: 11916 | BF11: 238433 | BG11: 241954 | BH11: 244392 | BI11: 247911 | BJ11: 250349 | BL11: 6 | BM11: 123.9256757 | BN11: 125.7557173 | BO11: 127.022869 | BP11: 128.8518711 | BQ11: 130.1190229 | BS11: 6 | BT11: 185.8885135 | BU11: 188.6335759 | BV11: 190.5343035 | BW11: 193.2778067 | BX11: 195.1785343 | BZ11: 6 | CA11: 61.96283784 | CB11: 62.87785863 | CC11: 63.51143451 | CD11: 64.42593555 | CE11: 65.05951143
A12: 7 | B12: 20192.25 | C12: 20492.91667 | D12: 20701.16667 | E12: 21001.83333 | F12: 21209.83333 | H12: 23366658.25 | I12: 16190897.17 | J12: 23367167.17 | L12: 7 | M12: 20192.25 | N12: 20492.91667 | O12: 20701.16667 | P12: 21001.83333 | Q12: 21209.83333 | S12: 23366658.25 | T12: 16190897.17 | U12: 23367167.17 | V12: 16171993.83 | X12: 7 | Y12: 161721 | Z12: 80586 | AA12: 242307 | AB12: 2989 | AC12: 5060 | AD12: 8049 | AE12: 10118 | AG12: 2408 | AH12: 4076 | AI12: 6484 | AJ12: 8150 | AL12: 3608 | AM12: 6107 | AN12: 9715 | AO12: 12211 | AQ12: 242307 | AR12: 245915 | AS12: 248414 | AT12: 252022 | AU12: 254518 | AW12: 161721 | AX12: 80586.22118 | AY12: 242307 | BA12: 3608 | BB12: 6107 | BC12: 9715 | BD12: 12211 | BF12: 242307 | BG12: 245915 | BH12: 248414 | BI12: 252022 | BJ12: 254518 | BL12: 7 | BM12: 125.9391892 | BN12: 127.8144491 | BO12: 129.1133056 | BP12: 130.9885655 | BQ12: 132.2858628 | BS12: 7 | BT12: 188.9087838 | BU12: 191.7216736 | BV12: 193.6699584 | BW12: 196.4828482 | BX12: 198.4287942 | BZ12: 7 | CA12: 62.96959459 | CB12: 63.90722453 | CC12: 64.55665281 | CD12: 65.49428274 | CE12: 66.14293139
A13: 8 | B13: 20536.41667 | C13: 20844.83333 | D13: 21058.41667 | E13: 21366.75 | F13: 21580.25 | H13: 23968782.17 | I13: 16605377.08 | J13: 23962833.42 | L13: 8 | M13: 20536.41667 | N13: 20844.83333 | O13: 21058.41667 | P13: 21366.75 | Q13: 21580.25 | S13: 23968782.17 | T13: 16605377.08 | U13: 23962833.42 | V13: 16599428.25 | X13: 8 | Y13: 164477 | Z13: 81960 | AA13: 246437 | AB13: 3067 | AC13: 5190 | AD13: 8256 | AE13: 10379 | AG13: 2470 | AH13: 4181 | AI13: 6650 | AJ13: 8360 | AL13: 3701 | AM13: 6264 | AN13: 9964 | AO13: 12526 | AQ13: 246437 | AR13: 250138 | AS13: 252701 | AT13: 256401 | AU13: 258963 | AW13: 164477 | AX13: 81959.54701 | AY13: 246437 | BA13: 3701 | BB13: 6264 | BC13: 9964 | BD13: 12526 | BF13: 246437 | BG13: 250138 | BH13: 252701 | BI13: 256401 | BJ13: 258963 | BL13: 8 | BM13: 128.0857588 | BN13: 130.0093555 | BO13: 131.3414761 | BP13: 133.264553 | BQ13: 134.5961538 | BS13: 8 | BT13: 192.1286383 | BU13: 195.0140333 | BV13: 197.0122141 | BW13: 199.8968295 | BX13: 201.8942308 | BZ13: 8 | CA13: 64.04287942 | CB13: 65.00467775 | CC13: 65.67073805 | CD13: 66.63227651 | CE13: 67.29807692
A14: 9 | B14: 21182.41667 | C14: 21498.58333 | D14: 21717.33333 | E14: 22033.33333 | F14: 22252.16667 | H14: =ROUND(AQ14+(AR14-AQ14)/3*faktor,0)/12 -> 24571207.92 | I14: =ROUND(AR14+(AS14-AR14)/3*faktor,0)/12 -> 17007217.33 | J14: =ROUND(AS14+(AT14-AS14)/3*faktor,0)/12 -> 24558801.33 | L14: 9 | M14: 21182.41667 | N14: 21498.58333 | O14: 21717.33333 | P14: 22033.33333 | Q14: 22252.16667 | S14: =(BF14+ROUND((BG14-BF14)/3*faktor,0))/12 -> 24571207.92 | T14: =(BG14+ROUND((BH14-BG14)/3*faktor,0))/12 -> 17007217.33 | U14: =(BH14+ROUND((BI14-BH14)/3*faktor,0))/12 -> 24558801.33 | V14: =(BI14+ROUND((BJ14-BI14)/3*faktor,0))/12 -> 17014222.83 | X14: 9 | Y14: 169651 | Z14: 84538 | AA14: 254189 | AB14: 3143 | AC14: 5319 | AD14: 8461 | AE14: 10637 | AG14: 2532 | AH14: 4284 | AI14: 6815 | AJ14: 8568 | AL14: 3794 | AM14: 6419 | AN14: 10211 | AO14: 12837 | AP14: =AR14/12 -> 21498.58333 | AQ14: 254189 | AR14: =ROUND($AA14+AL14,0) -> 257983 | AS14: =$AA14+AM14 -> 260608 | AT14: =$AA14+AN14 -> 264400 | AU14: =$AA14+AO14 -> 267026 | AW14: 169651 | AX14: 84537.7719 | AY14: 254189 | BA14: 3794 | BB14: 6419 | BC14: 10211 | BD14: 12837 | BF14: 254189 | BG14: 257983 | BH14: 260608 | BI14: 264400 | BJ14: 267026 | BL14: 9 | BM14: 132.1148649 | BN14: 134.0867983 | BO14: 135.4511435 | BP14: 137.4220374 | BQ14: 138.7869023 | BS14: 9 | BT14: 198.1722973 | BU14: 201.1301975 | BV14: 203.1767152 | BW14: 206.1330561 | BX14: 208.1803534 | BZ14: 9 | CA14: 66.05743243 | CB14: 67.04339917 | CC14: 67.72557173 | CD14: 68.71101871 | CE14: 69.39345114
A15: 10 | B15: 21332 | C15: 21656 | D15: 21880.25 | E15: 22204.16667 | F15: 22428.5 | H15: 25179608 | I15: 17434444.25 | J15: 25173685.5 | L15: 10 | M15: 21332 | N15: 21656 | O15: 21880.25 | P15: 22204.16667 | Q15: 22428.5 | S15: 25179608 | T15: 17434444.25 | U15: 25173685.5 | V15: 17441463.17 | X15: 10 | Y15: 170849 | Z15: 85135 | AA15: 255984 | AB15: 3221 | AC15: 5451 | AD15: 8672 | AE15: 10903 | AG15: 2595 | AH15: 4391 | AI15: 6985 | AJ15: 8782 | AL15: 3888 | AM15: 6579 | AN15: 10466 | AO15: 13158 | AQ15: 255984 | AR15: =$AA15+AL15 -> 259872 | AS15: 262563 | AT15: 266450 | AU15: 269142 | AW15: 170849 | AX15: 85134.7401 | AY15: 255984 | BA15: 3888 | BB15: 6579 | BC15: 10466 | BD15: 13158 | BF15: 255984 | BG15: 259872 | BH15: 262563 | BI15: 266450 | BJ15: 269142 | BL15: 10 | BM15: 133.047817 | BN15: 135.0686071 | BO15: 136.4672557 | BP15: 138.487526 | BQ15: 139.8866944 | BS15: 10 | BT15: 199.5717256 | BU15: 202.6029106 | BV15: 204.7008836 | BW15: 207.731289 | BX15: 209.8300416 | BZ15: 10 | CA15: 66.52390852 | CB15: 67.53430353 | CC15: 68.23362786 | CD15: 69.24376299 | CE15: 69.94334719
A16: 11 | B16: 21738.16667 | C16: 22070.16667 | D16: 22300.16667 | E16: 22632.16667 | F16: 22862.16667 | H16: 25801206.17 | I16: 17881340.17 | J16: 25801768.17 | L16: 11 | M16: 21738.16667 | N16: 22070.16667 | O16: 22300.16667 | P16: 22632.16667 | Q16: 22862.16667 | S16: 25801206.17 | T16: 17881340.17 | U16: 25801768.17 | V16: 17881902.17 | X16: 11 | Y16: 173067 | Z16: =IF(beregningsdato>=$AA$5,ROUND((Y16+$Y$5)*regulering,0),ROUND(Y16*regulering,0)) -> 86756 | AA16: =IF(beregningsdato>=$AA$5,SUM($Y$5,Y16:Z16),SUM(Y16:Z16)) -> 260858 | AB16: 3301 | AC16: 5588 | AD16: 8889 | AE16: 11175 | AF16: 2659 | AG16: 2659 | AH16: 4501 | AI16: 7160 | AJ16: 9002 | AL16: 3984 | AM16: 6744 | AN16: 10728 | AO16: 13488 | AQ16: 260858 | AR16: 264842 | AS16: 267602 | AT16: 271586 | AU16: 274346 | AW16: 173067 | AX16: =IF(beregningsdato>=$AA$5,ROUND((AW16+$Y$5)*regulering,0),ROUND(AW16*regulering,0)) -> 86756 | AY16: =IF(beregningsdato>=$AA$5,SUM($Y$5,AW16:AX16),SUM(AW16:AX16)) -> 260858 | BA16: 3984 | BB16: 6744 | BC16: 10728 | BD16: 13488 | BF16: 260858 | BG16: 264842 | BH16: 267602 | BI16: 271586 | BJ16: 274346 | BL16: 11 | BM16: 135.5810811 | BN16: 137.6517672 | BO16: 139.0862786 | BP16: 141.1569647 | BQ16: 142.5914761 | BS16: 11 | BT16: 203.3716216 | BU16: 206.4776507 | BV16: 208.6294179 | BW16: 211.735447 | BX16: 213.8872141 | BZ16: 11 | CA16: 67.79054054 | CB16: 68.82588358 | CC16: 69.54313929 | CD16: 70.57848233 | CE16: 71.29573805
A17: 12 | B17: 22108.33333 | C17: 22448.66667 | D17: 22684.33333 | E17: 23024.83333 | F17: 23260.41667 | H17: 26448651.33 | I17: 18321729.67 | J17: 26462168.83 | L17: 12 | M17: 22108.33333 | N17: 22448.66667 | O17: 22684.33333 | P17: 23024.83333 | Q17: 23260.41667 | S17: 26448651.33 | T17: 18321729.67 | U17: 26462168.83 | V17: 18315835.08 | X17: 12 | Y17: 176032 | Z17: =IF(beregningsdato>=$AA$5,ROUND((Y17+$Y$5)*regulering,0),ROUND(Y17*regulering,0)) -> 88233 | AA17: 265300 | AB17: 3384 | AC17: 5727 | AD17: 9112 | AE17: 11455 | AF17: 2726 | AG17: 2726 | AH17: 4613 | AI17: 7340 | AJ17: 9227 | AL17: 4084 | AM17: 6912 | AN17: 10998 | AO17: 13825 | AQ17: 265300 | AR17: 269384 | AS17: 272212 | AT17: 276298 | AU17: 279125 | AW17: 176032 | AX17: =IF(beregningsdato>=$AA$5,ROUND((AW17+$Y$5)*regulering,0),ROUND(AW17*regulering,0)) -> 88233 | AY17: 265300 | BA17: 4084 | BB17: 6912 | BC17: 10998 | BD17: 13825 | BF17: 265300 | BG17: 269384 | BH17: 272212 | BI17: 276298 | BJ17: 279125 | BL17: 12 | BM17: 137.8898129 | BN17: 140.012474 | BO17: 141.4823285 | BP17: 143.6060291 | BQ17: 145.0753638 | BS17: 12 | BT17: 206.8347193 | BU17: 210.018711 | BV17: 212.2234927 | BW17: 215.4090437 | BX17: 217.6130457 | BZ17: 12 | CA17: 68.94490644 | CB17: 70.00623701 | CC17: 70.74116424 | CD17: 71.80301455 | CE17: 72.53768191
A18: 13 | B18: 22489.08333 | C18: 22838.08333 | D18: 23079.66667 | E18: 23428.66667 | F18: 23670.25 | H18: 27121990.08 | I18: 18781542.33 | J18: 27122580.67 | L18: 13 | M18: 22489.08333 | N18: 22838.08333 | O18: 23079.66667 | P18: 23428.66667 | Q18: 23670.25 | S18: 27121990.08 | T18: 18781542.33 | U18: 27122580.67 | V18: 18782132.92 | X18: 13 | Y18: 179081 | Z18: =IF(beregningsdato>=$AA$5,ROUND((Y18+$Y$5)*regulering,0),ROUND(Y18*regulering,0)) -> 89753 | AA18: 269869 | AB18: 3470 | AC18: 5872 | AD18: 9342 | AE18: 11744 | AF18: 2795 | AG18: 2795 | AH18: 4730 | AI18: 7525 | AJ18: 9460 | AL18: 4188 | AM18: 7087 | AN18: 11275 | AO18: 14174 | AQ18: 269869 | AR18: 274057 | AS18: 276956 | AT18: 281144 | AU18: 284043 | AW18: 179081 | AX18: =IF(beregningsdato>=$AA$5,ROUND((AW18+$Y$5)*regulering,0),ROUND(AW18*regulering,0)) -> 89753 | AY18: 269869 | BA18: 4188 | BB18: 7087 | BC18: 11275 | BD18: 14174 | BF18: 269869 | BG18: 274057 | BH18: 276956 | BI18: 281144 | BJ18: 284043 | BL18: 13 | BM18: 140.264553 | BN18: 142.4412682 | BO18: 143.9480249 | BP18: 146.1247401 | BQ18: 147.6314969 | BS18: 13 | BT18: 210.3968295 | BU18: 213.6619023 | BV18: 215.9220374 | BW18: 219.1871102 | BX18: 221.4472453 | BZ18: 13 | CA18: 70.13227651 | CB18: 71.2206341 | CC18: 71.97401247 | CD18: 73.06237006 | CE18: 73.81574844
A19: 14 | B19: 22880.25 | C19: 23238 | D19: 23485.58333 | E19: 23843.41667 | F19: 24091.16667 | H19: 27801810 | I19: 19247836.25 | J19: 27808886.08 | L19: 14 | M19: 22880.25 | N19: 23238 | O19: 23485.58333 | P19: 23843.41667 | Q19: 24091.16667 | S19: 27801810 | T19: 19247836.25 | U19: 27808886.08 | V19: 19261383.17 | X19: 14 | Y19: 182214 | Z19: 91314 | AA19: 274563 | AB19: 3557 | AC19: 6019 | AD19: 9577 | AE19: 12039 | AF19: 2865 | AG19: 2865 | AH19: 4848 | AI19: 7714 | AJ19: 9698 | AL19: 4293 | AM19: 7264 | AN19: 11558 | AO19: 14531 | AQ19: 274563 | AR19: 278856 | AS19: 281827 | AT19: 286121 | AU19: 289094 | AW19: 182214 | AX19: 91314 | AY19: 274563 | BA19: 4293 | BB19: 7264 | BC19: 11558 | BD19: 14531 | BF19: 274563 | BG19: 278856 | BH19: 281827 | BI19: 286121 | BJ19: 289094 | BL19: 14 | BM19: 142.704262 | BN19: 144.9355509 | BO19: 146.4797297 | BP19: 148.7115385 | BQ19: 150.2567568 | BS19: 14 | BT19: 214.0563929 | BU19: 217.4033264 | BV19: 219.7195946 | BW19: 223.0673077 | BX19: 225.3851351 | BZ19: 14 | CA19: 71.35213098 | CB19: 72.46777547 | CC19: 73.23986486 | CD19: 74.35576923 | CE19: 75.12837838
A20: 15 | B20: 23266.5 | C20: 23633.25 | D20: 23887.33333 | E20: 24253.91667 | F20: 24507.83333 | H20: 28501037.25 | I20: 19752950 | J20: 28488716.58 | L20: 15 | M20: 23266.5 | N20: 23633.25 | O20: 23887.33333 | P20: 24253.91667 | Q20: 24507.83333 | S20: 28501037.25 | T20: 19752950 | U20: 28488716.58 | V20: 19740629.17 | X20: 15 | Y20: 185308 | Z20: 92855 | AA20: 279198 | AB20: 3646 | AC20: 6172 | AD20: 9818 | AE20: 12343 | AF20: 2937 | AG20: 2937 | AH20: 4972 | AI20: 7908 | AJ20: 9942 | AL20: 4401 | AM20: 7450 | AN20: 11849 | AO20: 14896 | AQ20: 279198 | AR20: 283599 | AS20: 286648 | AT20: 291047 | AU20: 294094 | AW20: 185308 | AX20: 92855 | AY20: 279198 | BA20: 4401 | BB20: 7450 | BC20: 11849 | BD20: 14896 | BF20: 279198 | BG20: 283599 | BH20: 286648 | BI20: 291047 | BJ20: 294094 | BL20: 15 | BM20: 145.1133056 | BN20: 147.4007277 | BO20: 148.985447 | BP20: 151.2718295 | BQ20: 152.8555094 | BS20: 15 | BT20: 217.6699584 | BU20: 221.1010915 | BV20: 223.4781705 | BW20: 226.9077443 | BX20: 229.283264 | BZ20: 15 | CA20: 72.55665281 | CB20: 73.70036383 | CC20: 74.49272349 | CD20: 75.63591476 | CE20: 76.42775468
A21: 16 | B21: 23662 | C21: 24037.91667 | D21: 24298.25 | E21: 24674.25 | F21: 24934.83333 | H21: 29213215.25 | I21: 20238660.92 | J21: 29220322.25 | L21: 16 | M21: 23662 | N21: 24037.91667 | O21: 24298.25 | P21: 24674.25 | Q21: 24934.83333 | S21: 29213215.25 | T21: 20238660.92 | U21: 29220322.25 | V21: 20258709.5 | X21: 16 | Y21: 188475 | Z21: 94434 | AA21: 283944 | AB21: 3738 | AC21: 6327 | AD21: 10065 | AE21: 12655 | AF21: 3011 | AG21: 3011 | AH21: 5096 | AI21: 8107 | AJ21: 10194 | AL21: 4511 | AM21: 7635 | AN21: 12147 | AO21: 15274 | AQ21: 283944 | AR21: 288455 | AS21: 291579 | AT21: 296091 | AU21: 299218 | AW21: 188475 | AX21: 94434 | AY21: 283944 | BA21: 4511 | BB21: 7635 | BC21: 12147 | BD21: 15274 | BF21: 283944 | BG21: 288455 | BH21: 291579 | BI21: 296091 | BJ21: 299218 | BL21: 16 | BM21: 147.5800416 | BN21: 149.9246362 | BO21: 151.5483368 | BP21: 153.8934511 | BQ21: 155.518711 | BS21: 16 | BT21: 221.3700624 | BU21: 224.8869543 | BV21: 227.3225052 | BW21: 230.8401767 | BX21: 233.2780665 | BZ21: 16 | CA21: 73.79002079 | CB21: 74.96231809 | CC21: 75.7741684 | CD21: 76.94672557 | CE21: 77.75935551
A22: 17 | B22: =AQ22/12 -> 23990.5 | C22: 24377.83333 | D22: 24646 | E22: 25033.41667 | F22: 25301.5 | H22: 30100036.5 | I22: 20847251.33 | J22: 30107162.75 | L22: 17 | M22: =BF22/12 -> 23990.5 | N22: 24377.83333 | O22: 24646 | P22: 25033.41667 | Q22: 25301.5 | S22: 30100036.5 | T22: 20847251.33 | U22: 30107162.75 | V22: 20841436.17 | X22: 17 | Y22: 191106 | Z22: 95745 | AA22: 287886 | AB22: 3851 | AC22: 6518 | AD22: 10370 | AE22: 13035 | AF22: 3102 | AG22: 3102 | AH22: 5250 | AI22: 8353 | AJ22: 10500 | AL22: 4648 | AM22: 7866 | AN22: 12515 | AO22: 15732 | AQ22: 287886 | AR22: 292534 | AS22: 295752 | AT22: 300401 | AU22: 303618 | AW22: 191106 | AX22: 95745 | AY22: 287886 | BA22: 4648 | BB22: 7866 | BC22: 12515 | BD22: 15732 | BF22: 287886 | BG22: =$BF22+BA22 -> 292534 | BH22: 295752 | BI22: 300401 | BJ22: 303618 | BL22: 17 | BM22: =AQ22/1924 -> 149.6288981 | BN22: 152.0446985 | BO22: 153.7172557 | BP22: 156.1335759 | BQ22: 157.8056133 | BS22: 17 | BT22: 224.4433472 | BU22: 228.0670478 | BV22: 230.5758836 | BW22: 234.2003638 | BX22: 236.70842 | BZ22: 17 | CA22: =AQ22/1924/2 -> 74.81444906 | CB22: 76.02234927 | CC22: 76.85862786 | CD22: 78.06678794 | CE22: 78.90280665
A23: 18 | B23: 24428.58333 | C23: 24825.75 | D23: 25100.66667 | E23: 25498 | F23: 25772.91667 | H23: 30864023.08 | I23: 21371830 | J23: 30877636.67 | L23: 18 | M23: 24428.58333 | N23: 24825.75 | O23: 25100.66667 | P23: 25498 | Q23: 25772.91667 | S23: 30864023.08 | T23: 21371830 | U23: 30877636.67 | V23: 21372502.25 | X23: 18 | Y23: 194615 | Z23: 97493 | AA23: 293143 | AB23: 3949 | AC23: 6683 | AD23: 10633 | AE23: 13367 | AF23: 3181 | AG23: 3181 | AH23: 5383 | AI23: 8565 | AJ23: 10767 | AL23: 4766 | AM23: 8065 | AN23: 12833 | AO23: 16132 | AQ23: 293143 | AR23: 297909 | AS23: 301208 | AT23: 305976 | AU23: 309275 | AW23: 194615 | AX23: 97493 | AY23: 293143 | BA23: 4766 | BB23: 8065 | BC23: 12833 | BD23: 16132 | BF23: 293143 | BG23: 297909 | BH23: 301208 | BI23: 305976 | BJ23: 309275 | BL23: 18 | BM23: 152.3612266 | BN23: 154.8383576 | BO23: 156.5530146 | BP23: 159.031185 | BQ23: 160.745842 | BS23: 18 | BT23: =AQ23/1924*1.5 -> 228.5418399 | BU23: 232.2575364 | BV23: 234.8295218 | BW23: 238.5467775 | BX23: 241.118763 | BZ23: 18 | CA23: 76.18061331 | CB23: 77.41917879 | CC23: 78.27650728 | CD23: 79.51559252 | CE23: 80.372921
A24: 19 | B24: 24756.58333 | C24: 25163.83333 | D24: 25445.91667 | E24: 25853.25 | F24: 26135.25 | H24: 31647311.83 | I24: 21928652.58 | J24: 31654471.92 | L24: 19 | M24: 24756.58333 | N24: 25163.83333 | O24: 25445.91667 | P24: 25853.25 | Q24: 26135.25 | S24: 31647311.83 | T24: 21928652.58 | U24: 31654471.92 | V24: 21922871.25 | X24: 19 | Y24: 197242 | Z24: 98802 | AA24: 297079 | AB24: 4050 | AC24: 6854 | AD24: 10904 | AE24: 13708 | AF24: 3262 | AG24: 3262 | AH24: 5521 | AI24: 8783 | AJ24: 11042 | AL24: 4887 | AM24: 8272 | AN24: 13160 | AO24: 16544 | AQ24: 297079 | AR24: 301966 | AS24: 305351 | AT24: 310239 | AU24: 313623 | AW24: 197242 | AX24: 98802 | AY24: 297079 | BA24: 4887 | BB24: 8272 | BC24: 13160 | BD24: 16544 | BF24: 297079 | BG24: 301966 | BH24: 305351 | BI24: 310239 | BJ24: 313623 | BL24: 19 | BM24: 154.4069647 | BN24: 156.9469854 | BO24: 158.706341 | BP24: 161.2468815 | BQ24: 163.0057173 | BS24: 19 | BT24: 231.610447 | BU24: 235.4204782 | BV24: 238.0595114 | BW24: 241.8703222 | BX24: 244.5085759 | BZ24: 19 | CA24: 77.20348233 | CB24: 78.47349272 | CC24: 79.35317048 | CD24: 80.62344075 | CE24: 81.50285863
A25: 20 | B25: 25049.41667 | C25: 25467.08333 | D25: 25756.25 | E25: 26174 | F25: 26463.08333 | H25: 32456448.42 | I25: 22478969.58 | J25: 32463626 | L25: 20 | M25: 25049.41667 | N25: 25467.08333 | O25: 25756.25 | P25: 26174 | Q25: 26463.08333 | S25: 32456448.42 | T25: 22478969.58 | U25: 32463626 | V25: 22473205.75 | X25: 20 | Y25: 199969 | Z25: =IF(beregningsdato>=$AB$5,ROUND((Y25+$AC$5)*regulering,0),ROUND(Y25*regulering,0)) -> 99971 | AA25: =IF(beregningsdato>=$AB$5,SUM($AC$5,Y25:Z25),SUM(Y25:Z25)) -> 300593 | AB25: 4153 | AC25: 7028 | AD25: 11182 | AE25: 14056 | AF25: 3345 | AG25: 3345 | AH25: 5661 | AI25: 9007 | AJ25: 11322 | AL25: 5012 | AM25: 8482 | AN25: 13495 | AO25: 16964 | AQ25: 300593 | AR25: 305605 | AS25: 309075 | AT25: 314088 | AU25: 317557 | AW25: 199969 | AX25: =IF(beregningsdato>=$AB$5,ROUND((AW25+$AC$5)*regulering,0),ROUND(AW25*regulering,0)) -> 99971 | AY25: =IF(beregningsdato>=$AB$5,SUM($AC$5,AW25:AX25),SUM(AW25:AX25)) -> 300593 | BA25: 5012 | BB25: 8482 | BC25: 13495 | BD25: 16964 | BF25: 300593 | BG25: 305605 | BH25: 309075 | BI25: 314088 | BJ25: 317557 | BL25: 20 | BM25: 156.233368 | BN25: 158.8383576 | BO25: 160.6418919 | BP25: 163.2474012 | BQ25: 165.0504158 | BS25: 20 | BT25: 234.350052 | BU25: 238.2575364 | BV25: 240.9628378 | BW25: 244.8711019 | BX25: 247.5756237 | BZ25: 20 | CA25: 78.11668399 | CB25: 79.41917879 | CC25: 80.32094595 | CD25: 81.62370062 | CE25: 82.5252079
A26: 21 | B26: 25463.58333 | C26: 25892 | D26: 26188.5 | E26: 26616.91667 | F26: 26913.41667 | H26: 33291589.33 | I26: 23048820.5 | J26: 33292314.25 | L26: 21 | M26: 25463.58333 | N26: 25892 | O26: 26188.5 | P26: 26616.91667 | Q26: 26913.41667 | S26: 33291589.33 | T26: 23048820.5 | U26: 33292314.25 | V26: 23049545.42 | X26: 21 | Y26: 203286 | Z26: =IF(beregningsdato>=$AB$5,ROUND((Y26+$AC$5)*regulering,0),ROUND(Y26*regulering,0)) -> 101624 | AA26: =IF(beregningsdato>=$AB$5,SUM($AC$5,Y26:Z26),SUM(Y26:Z26)) -> 305563 | AB26: 4259 | AC26: 7208 | AD26: 11467 | AE26: 14416 | AF26: 3431 | AG26: 3431 | AH26: 5806 | AI26: 9237 | AJ26: 11612 | AL26: =ROUND(VLOOKUP($X26,$X:$AJ,(4+AL$4)+$AM$5)*(1+$AL$5),0) -> 5141 | AM26: 8699 | AN26: 13840 | AO26: 17398 | AQ26: 305563 | AR26: 310704 | AS26: 314262 | AT26: 319403 | AU26: 322961 | AW26: 203286 | AX26: =IF(beregningsdato>=$AB$5,ROUND((AW26+$AC$5)*regulering,0),ROUND(AW26*regulering,0)) -> 101624 | AY26: =IF(beregningsdato>=$AB$5,SUM($AC$5,AW26:AX26),SUM(AW26:AX26)) -> 305563 | BA26: 5141 | BB26: 8699 | BC26: 13840 | BD26: 17398 | BF26: 305563 | BG26: 310704 | BH26: 314262 | BI26: 319403 | BJ26: 322961 | BL26: 21 | BM26: 158.8165281 | BN26: 161.4885655 | BO26: 163.3378378 | BP26: 166.0098753 | BQ26: 167.8591476 | BS26: 21 | BT26: 238.2247921 | BU26: 242.2328482 | BV26: 245.0067568 | BW26: 249.0148129 | BX26: 251.7887214 | BZ26: 21 | CA26: 79.40826403 | CB26: 80.74428274 | CC26: 81.66891892 | CD26: 83.00493763 | CE26: 83.9295738
A27: 22 | B27: 25766.08333 | C27: 26194.5 | D27: 26491 | E27: 26919.41667 | F27: 27215.91667 | H27: 33291891.83 | I27: 23049123 | J27: 33292616.75 | L27: 22 | M27: 25766.08333 | N27: 26194.5 | O27: 26491 | P27: 26919.41667 | Q27: 27215.91667 | S27: 33291891.83 | T27: 23049123 | U27: 33292616.75 | V27: 23049847.92 | X27: 22 | Y27: 206362 | Z27: 102831 | AA27: 309193 | AB27: 4259 | AC27: 7208 | AD27: 11467 | AE27: 14416 | AG27: 3431 | AH27: 5806 | AI27: 9237 | AJ27: 11612 | AL27: 5141 | AM27: 8699 | AN27: 13840 | AO27: 17398 | AQ27: 309193 | AR27: 314334 | AS27: 317892 | AT27: 323033 | AU27: 326591 | AW27: 206362 | AX27: 102831.01 | AY27: 309193 | BA27: 5141 | BB27: 8699 | BC27: 13840 | BD27: 17398 | BF27: 309193 | BG27: 314334 | BH27: 317892 | BI27: 323033 | BJ27: 326591 | BL27: 22 | BM27: 160.7032225 | BN27: 163.3752599 | BO27: 165.2245322 | BP27: 167.8965696 | BQ27: 169.745842 | BS27: 22 | BT27: 241.0548337 | BU27: 245.0628898 | BV27: 247.8367983 | BW27: 251.8448545 | BX27: 254.618763 | BZ27: 22 | CA27: 80.35161123 | CB27: 81.68762994 | CC27: 82.61226611 | CD27: 83.94828482 | CE27: 84.872921
A28: 23 | B28: 26177 | C28: 26593.75 | D28: 26882.08333 | E28: 27298.75 | F28: 27587.16667 | H28: 32386397.75 | I28: 22415388.75 | J28: 32380632.08 | L28: 23 | M28: 26177 | N28: 26593.75 | O28: 26882.08333 | P28: 27298.75 | Q28: 27587.16667 | S28: 32386397.75 | T28: 22415388.75 | U28: 32380632.08 | V28: 22422564.5 | X28: 23 | Y28: 209653 | Z28: 104471 | AA28: 314124 | AB28: 4144 | AC28: 7010 | AD28: 11153 | AE28: 14021 | AG28: 3338 | AH28: 5647 | AI28: 8984 | AJ28: 11294 | AL28: 5001 | AM28: 8461 | AN28: 13461 | AO28: 16922 | AQ28: 314124 | AR28: 319125 | AS28: 322585 | AT28: 327585 | AU28: 331046 | AW28: 209653 | AX28: 104470.9285 | AY28: 314124 | BA28: 5001 | BB28: 8461 | BC28: 13461 | BD28: 16922 | BF28: 314124 | BG28: 319125 | BH28: 322585 | BI28: 327585 | BJ28: 331046 | BL28: 23 | BM28: 163.2661123 | BN28: 165.8653846 | BO28: 167.6637214 | BP28: 170.262474 | BQ28: 172.0613306 | BS28: 23 | BT28: 244.8991684 | BU28: 248.7980769 | BV28: 251.4955821 | BW28: 255.393711 | BX28: 258.0919958 | BZ28: 23 | CA28: 81.63305613 | CB28: 82.93269231 | CC28: 83.83186071 | CD28: 85.13123701 | CE28: 86.03066528
A29: 24 | B29: 26601 | C29: 27005.83333 | D29: 27286.08333 | E29: 27690.91667 | F29: 27971.08333 | H29: 31461504.5 | I29: 21788138.08 | J29: 31462189.58 | L29: 24 | M29: 26601 | N29: 27005.83333 | O29: 27286.08333 | P29: 27690.91667 | Q29: 27971.08333 | S29: 31461504.5 | T29: 21788138.08 | U29: 31462189.58 | V29: 21782352.42 | X29: 24 | Y29: 213049 | Z29: 106163 | AA29: 319212 | AB29: 4025 | AC29: 6812 | AD29: 10837 | AE29: 13623 | AG29: 3242 | AH29: 5487 | AI29: 8729 | AJ29: 10973 | AL29: 4858 | AM29: 8221 | AN29: 13079 | AO29: 16441 | AQ29: 319212 | AR29: 324070 | AS29: 327433 | AT29: 332291 | AU29: 335653 | AW29: 213049 | AX29: 106163.1689 | AY29: 319212 | BA29: 4858 | BB29: 8221 | BC29: 13079 | BD29: 16441 | BF29: 319212 | BG29: 324070 | BH29: 327433 | BI29: 332291 | BJ29: 335653 | BL29: 24 | BM29: 165.9106029 | BN29: 168.4355509 | BO29: 170.1834719 | BP29: 172.70842 | BQ29: 174.4558212 | BS29: 24 | BT29: 248.8659044 | BU29: 252.6533264 | BV29: 255.2752079 | BW29: 259.0626299 | BX29: 261.6837318 | BZ29: 24 | CA29: 82.95530146 | CB29: 84.21777547 | CC29: 85.09173597 | CD29: 86.35420998 | CE29: 87.2279106
A30: 25 | B30: 27033.91667 | C30: 27426.08333 | D30: 27697.5 | E30: 28089.83333 | F30: =AU30/12 -> 28361.25 | H30: 30478383.42 | I30: 21102658.83 | J30: 30491988.5 | L30: 25 | M30: 27033.91667 | N30: 27426.08333 | O30: 27697.5 | P30: 28089.83333 | Q30: 28361.25 | S30: 30478383.42 | T30: 21102658.83 | U30: 30491988.5 | V30: 21103322.58 | X30: 25 | Y30: 216516 | Z30: 107891 | AA30: 324407 | AB30: 3899 | AC30: 6598 | AD30: 10499 | AE30: 13198 | AG30: 3141 | AH30: 5315 | AI30: 8457 | AJ30: 10631 | AL30: 4706 | AM30: 7963 | AN30: 12671 | AO30: 15928 | AQ30: 324407 | AR30: 329113 | AS30: 332370 | AT30: 337078 | AU30: 340335 | AW30: 216516 | AX30: 107890.7889 | AY30: 324407 | BA30: 4706 | BB30: 7963 | BC30: 12671 | BD30: 15928 | BF30: 324407 | BG30: 329113 | BH30: 332370 | BI30: 337078 | BJ30: 340335 | BL30: 25 | BM30: 168.6107069 | BN30: 171.0566528 | BO30: 172.7494802 | BP30: 175.1964657 | BQ30: 176.8892931 | BS30: 25 | BT30: 252.9160603 | BU30: 256.5849792 | BV30: 259.1242204 | BW30: 262.7946985 | BX30: 265.3339397 | BZ30: 25 | CA30: 84.30535343 | CB30: 85.5283264 | CC30: 86.37474012 | CD30: 87.59823285 | CE30: 88.44464657
A31: 26 | B31: 27476.75 | C31: 27855.58333 | D31: 28117.66667 | E31: 28496.25 | F31: 28758.41667 | H31: 29443506.25 | I31: 20378364.33 | J31: 29424734.92 | L31: 26 | M31: 27476.75 | N31: 27855.58333 | O31: 28117.66667 | P31: 28496.25 | Q31: 28758.41667 | S31: 29443506.25 | T31: 20378364.33 | U31: 29424734.92 | V31: 20385475.75 | X31: 26 | Y31: 220063 | Z31: 109658 | AA31: 329721 | AB31: 3766 | AC31: 6372 | AD31: 10137 | AE31: 12743 | AG31: 3034 | AH31: 5133 | AI31: 8165 | AJ31: 10265 | AL31: 4546 | AM31: 7691 | AN31: 12234 | AO31: 15380 | AQ31: 329721 | AR31: 334267 | AS31: 337412 | AT31: 341955 | AU31: 345101 | AW31: 220063 | AX31: 109658.2732 | AY31: 329721 | BA31: 4546 | BB31: 7691 | BC31: 12234 | BD31: 15380 | BF31: 329721 | BG31: 334267 | BH31: 337412 | BI31: 341955 | BJ31: 345101 | BL31: 26 | BM31: 171.3726611 | BN31: 173.735447 | BO31: 175.3700624 | BP31: 177.731289 | BQ31: 179.3664241 | BS31: 26 | BT31: 257.0589917 | BU31: 260.6031705 | BV31: 263.0550936 | BW31: 266.5969335 | BX31: 269.0496362 | BZ31: 26 | CA31: 85.68633056 | CB31: 86.86772349 | CC31: 87.68503119 | CD31: 88.86564449 | CE31: 89.68321206
A32: 27 | B32: 27929.75 | C32: 28294 | D32: 28545.91667 | E32: 28910.16667 | F32: 29162.25 | H32: 28311578 | I32: 19589371.25 | J32: 28312194.17 | L32: 27 | M32: 27929.75 | N32: 28294 | O32: 28545.91667 | P32: 28910.16667 | Q32: 29162.25 | S32: 28311578 | T32: 19589371.25 | U32: 28312194.17 | V32: 19602928.92 | X32: 27 | Y32: 223691 | Z32: 111466 | AA32: 335157 | AB32: 3621 | AC32: 6127 | AD32: 9748 | AE32: 12254 | AG32: 2917 | AH32: 4935 | AI32: 7852 | AJ32: 9871 | AL32: 4371 | AM32: 7394 | AN32: 11765 | AO32: 14790 | AQ32: 335157 | AR32: 339528 | AS32: 342551 | AT32: 346922 | AU32: 349947 | AW32: 223691 | AX32: 111466.1201 | AY32: 335157 | BA32: 4371 | BB32: 7394 | BC32: 11765 | BD32: 14790 | BF32: 335157 | BG32: 339528 | BH32: 342551 | BI32: 346922 | BJ32: 349947 | BL32: 27 | BM32: 174.1980249 | BN32: 176.4698545 | BO32: 178.0410603 | BP32: 180.3128898 | BQ32: 181.8851351 | BS32: 27 | BT32: 261.2970374 | BU32: 264.7047817 | BV32: 267.0615904 | BW32: 270.4693347 | BX32: 272.8277027 | BZ32: 27 | CA32: 87.09901247 | CB32: 88.23492723 | CC32: 89.02053015 | CD32: 90.15644491 | CE32: 90.94256757
A33: 28 | B33: 28392.75 | C33: 28741.5 | D33: 28982.83333 | E33: 29331.58333 | F33: 29572.75 | H33: 27108481.5 | I33: 18768033.5 | J33: 27109071.58 | L33: 28 | M33: 28392.75 | N33: 28741.5 | O33: 28982.83333 | P33: 29331.58333 | Q33: 29572.75 | S33: 27108481.5 | T33: 18768033.5 | U33: 27109071.58 | V33: 18755682.08 | X33: 28 | Y33: 227399 | Z33: 113314 | AA33: 340713 | AB33: 3467 | AC33: 5867 | AD33: 9334 | AE33: 11733 | AG33: 2793 | AH33: 4726 | AI33: 7519 | AJ33: 9451 | AL33: 4185 | AM33: 7081 | AN33: 11266 | AO33: 14160 | AQ33: 340713 | AR33: 344898 | AS33: 347794 | AT33: 351979 | AU33: 354873 | AW33: 227399 | AX33: 113313.8313 | AY33: 340713 | BA33: 4185 | BB33: 7081 | BC33: 11266 | BD33: 14160 | BF33: 340713 | BG33: 344898 | BH33: 347794 | BI33: 351979 | BJ33: 354873 | BL33: 28 | BM33: 177.0857588 | BN33: 179.2609148 | BO33: 180.7661123 | BP33: 182.9412682 | BQ33: 184.4454262 | BS33: 28 | BT33: 265.6286383 | BU33: 268.8913721 | BV33: 271.1491684 | BW33: 274.4119023 | BX33: 276.6681393 | BZ33: 28 | CA33: 88.54287942 | CB33: 89.63045738 | CC33: 90.38305613 | CD33: 91.4706341 | CE33: 92.2227131
A34: 29 | B34: 28866.16667 | C34: 29198.41667 | D34: 29428.25 | E34: 29760.41667 | F34: 29990.41667 | H34: 25827746.42 | I34: 17875526.92 | J34: 25821837.75 | L34: 29 | M34: 28866.16667 | N34: 29198.41667 | O34: 29428.25 | P34: 29760.41667 | Q34: 29990.41667 | S34: 25827746.42 | T34: 17875526.92 | U34: 25821837.75 | V34: 17889030.42 | X34: 29 | Y34: 231191 | Z34: 115203 | AA34: 346394 | AB34: 3303 | AC34: 5589 | AD34: 8891 | AE34: 11178 | AG34: 2661 | AH34: 4502 | AI34: 7162 | AJ34: 9004 | AL34: 3987 | AM34: 6745 | AN34: 10731 | AO34: 13491 | AQ34: 346394 | AR34: 350381 | AS34: 353139 | AT34: 357125 | AU34: 359885 | AW34: 231191 | AX34: 115203.4001 | AY34: 346394 | BA34: 3987 | BB34: 6745 | BC34: 10731 | BD34: 13491 | BF34: 346394 | BG34: 350381 | BH34: 353139 | BI34: 357125 | BJ34: 359885 | BL34: 29 | BM34: 180.0384615 | BN34: 182.1107069 | BO34: 183.5441788 | BP34: 185.6159044 | BQ34: 187.0504158 | BS34: 29 | BT34: 270.0576923 | BU34: 273.1660603 | BV34: 275.3162682 | BW34: 278.4238565 | BX34: 280.5756237 | BZ34: 29 | CA34: 90.01923077 | CB34: 91.05535343 | CC34: 91.7720894 | CD34: 92.80795218 | CE34: 93.5252079
A35: 30 | B35: 29349.91667 | C35: 29664.41667 | D35: 29882.33333 | E35: 30196.66667 | F35: 30414.5 | H35: 24449960.42 | I35: 16950675.67 | J35: 24437551.33 | L35: 30 | M35: 29349.91667 | N35: 29664.41667 | O35: 29882.33333 | P35: 30196.66667 | Q35: 30414.5 | S35: 24449960.42 | T35: 16950675.67 | U35: 24437551.33 | V35: 16944737.17 | X35: 30 | Y35: 235065 | Z35: 117134 | AA35: 352199 | AB35: 3127 | AC35: 5293 | AD35: 8420 | AE35: 10585 | AG35: 2519 | AH35: 4264 | AI35: 6782 | AJ35: 8526 | AL35: 3774 | AM35: 6389 | AN35: 10161 | AO35: 12775 | AQ35: 352199 | AR35: 355973 | AS35: 358588 | AT35: 362360 | AU35: 364974 | AW35: 235065 | AX35: 117133.8298 | AY35: 352199 | BA35: 3774 | BB35: 6389 | BC35: 10161 | BD35: 12775 | BF35: 352199 | BG35: 355973 | BH35: 358588 | BI35: 362360 | BJ35: 364974 | BL35: 30 | BM35: 183.0556133 | BN35: 185.0171518 | BO35: 186.3762994 | BP35: 188.3367983 | BQ35: 189.6954262 | BS35: 30 | BT35: 274.58342 | BU35: 277.5257277 | BV35: 279.5644491 | BW35: 282.5051975 | BX35: 284.5431393 | BZ35: 30 | CA35: 91.52780665 | CB35: 92.50857588 | CC35: 93.18814969 | CD35: 94.16839917 | CE35: 94.8477131
A36: 31 | B36: 29844.58333 | C36: 30140.5 | D36: 30345.25 | E36: 30641.16667 | F36: 30845.91667 | H36: 23007477.83 | I36: 15928773.25 | J36: 23007978.5 | L36: 31 | M36: 29844.58333 | N36: 30140.5 | O36: 30345.25 | P36: 30641.16667 | Q36: 30845.91667 | S36: 23007477.83 | T36: 15928773.25 | U36: 23007978.5 | V36: 15929273.92 | X36: 31 | Y36: 239027 | Z36: 119108 | AA36: 358135 | AB36: 2942 | AC36: 4978 | AD36: 7920 | AE36: 9956 | AG36: 2370 | AH36: 4010 | AI36: 6380 | AJ36: 8020 | AL36: 3551 | AM36: 6008 | AN36: 9559 | AO36: 12016 | AQ36: 358135 | AR36: 361686 | AS36: 364143 | AT36: 367694 | AU36: 370151 | AW36: 239027 | AX36: 119108.1102 | AY36: 358135 | BA36: 3551 | BB36: 6008 | BC36: 9559 | BD36: 12016 | BF36: 358135 | BG36: 361686 | BH36: 364143 | BI36: 367694 | BJ36: 370151 | BL36: 31 | BM36: 186.1408524 | BN36: 187.9864865 | BO36: 189.2635135 | BP36: 191.1091476 | BQ36: 192.3861746 | BS36: 31 | BT36: 279.2112786 | BU36: 281.9797297 | BV36: 283.8952703 | BW36: 286.6637214 | BX36: 288.579262 | BZ36: 31 | CA36: 93.0704262 | CB36: 93.99324324 | CC36: 94.63175676 | CD36: 95.5545738 | CE36: 96.19308732
A37: 32 | B37: 30350.25 | C37: 30626.16667 | D37: 30817.08333 | E37: 31093.16667 | F37: 31284.16667 | H37: 21455003.5 | I37: 14855114.42 | J37: 21468411.83 | L37: 32 | M37: 30350.25 | N37: 30626.16667 | O37: 30817.08333 | P37: 31093.16667 | Q37: 31284.16667 | S37: 21455003.5 | T37: 14855114.42 | U37: 21468411.83 | V37: 14862052.17 | X37: 32 | Y37: 243077 | Z37: 121126 | AA37: 364203 | AB37: 2743 | AC37: 4642 | AD37: 7387 | AE37: 9286 | AG37: 2210 | AH37: 3739 | AI37: 5950 | AJ37: 7480 | AL37: 3311 | AM37: 5602 | AN37: 8915 | AO37: 11207 | AQ37: 364203 | AR37: 367514 | AS37: 369805 | AT37: 373118 | AU37: 375410 | AW37: 243077 | AX37: 121126.2414 | AY37: 364203 | BA37: 3311 | BB37: 5602 | BC37: 8915 | BD37: 11207 | BF37: 364203 | BG37: 367514 | BH37: 369805 | BI37: 373118 | BJ37: 375410 | BL37: 32 | BM37: 189.2946985 | BN37: 191.0155925 | BO37: 192.206341 | BP37: 193.9282744 | BQ37: 195.1195426 | BS37: 32 | BT37: 283.9420478 | BU37: 286.5233888 | BV37: 288.3095114 | BW37: 290.8924116 | BX37: 292.6793139 | BZ37: 32 | CA37: 94.64734927 | CB37: 95.50779626 | CC37: 96.10317048 | CD37: 96.96413721 | CE37: 97.55977131
A38: 33 | B38: 30866.91667 | C38: 31121.75 | D38: 31298.16667 | E38: 31553 | F38: 31729.33333 | H38: 19818420.42 | I38: 13729699.5 | J38: 19818851.67 | L38: 33 | M38: 30866.91667 | N38: 31121.75 | O38: 31298.16667 | P38: 31553 | Q38: 31729.33333 | S38: 19818420.42 | T38: 13729699.5 | U38: 19818851.67 | V38: 13723660 | X38: 33 | Y38: 247215 | Z38: =ROUND(Y38*regulering,0) -> 123188 | AA38: 370403 | AB38: 2534 | AC38: 4288 | AD38: 6822 | AE38: 8575 | AG38: 2041 | AH38: 3454 | AI38: 5495 | AJ38: 6907 | AL38: 3058 | AM38: 5175 | AN38: 8233 | AO38: 10349 | AQ38: 370403 | AR38: 373461 | AS38: 375578 | AT38: 378636 | AU38: 380752 | AW38: 247215 | AX38: =AW38*regulering -> 123188.2234 | AY38: 370403 | BA38: =ROUND(AL38*udbygningspct,0) -> 3058 | BB38: =ROUND(AM38*udbygningspct,0) -> 5175 | BC38: =ROUND(AN38*udbygningspct,0) -> 8233 | BD38: =ROUND(AO38*udbygningspct,0) -> 10349 | BF38: 370403 | BG38: 373461 | BH38: 375578 | BI38: 378636 | BJ38: 380752 | BL38: 33 | BM38: 192.5171518 | BN38: 194.1065489 | BO38: 195.2068607 | BP38: 196.7962578 | BQ38: 197.8960499 | BS38: 33 | BT38: 288.7757277 | BU38: 291.1598233 | BV38: 292.8102911 | BW38: 295.1943867 | BX38: 296.8440748 | BZ38: 33 | CA38: 96.25857588 | CB38: 97.05327443 | CC38: 97.60343035 | CD38: 98.3981289 | CE38: 98.94802495
A39: 34 | B39: 31395.58333 | C39: 31628.08333 | D39: 31788.91667 | E39: 32021.33333 | F39: 32182.33333 | H39: 18084788.08 | I39: 12520175.58 | J39: 18078710.67 | L39: 34 | M39: 31395.58333 | N39: 31628.08333 | O39: 31788.91667 | P39: 32021.33333 | Q39: 32182.33333 | S39: 18084788.08 | T39: 12520175.58 | U39: 18078710.67 | V39: 12533510.33 | X39: 34 | Y39: 251449 | Z39: 125298 | AA39: 376747 | AB39: 2311 | AC39: 3911 | AD39: 6222 | AE39: 7823 | AG39: 1862 | AH39: 3150 | AI39: 5012 | AJ39: 6301 | AL39: 2790 | AM39: 4720 | AN39: 7509 | AO39: 9441 | AQ39: 376747 | AR39: 379537 | AS39: 381467 | AT39: 384256 | AU39: 386188 | AW39: 251449 | AX39: 125298.0425 | AY39: 376747 | BA39: 2790 | BB39: 4720 | BC39: 7509 | BD39: 9441 | BF39: 376747 | BG39: 379537 | BH39: 381467 | BI39: 384256 | BJ39: 386188 | BL39: 34 | BM39: 195.8144491 | BN39: 197.264553 | BO39: 198.2676715 | BP39: 199.7172557 | BQ39: 200.7214137 | BS39: 34 | BT39: 293.7216736 | BU39: 295.8968295 | BV39: 297.4015073 | BW39: 299.5758836 | BX39: 301.0821206 | BZ39: 34 | CA39: 97.90722453 | CB39: 98.63227651 | CC39: 99.13383576 | CD39: 99.85862786 | CE39: 100.3607069
A40: 35 | B40: 31935.33333 | C40: 32144.08333 | D40: 32288.58333 | E40: 32497.16667 | F40: 32641.75 | H40: 16241164.08 | I40: 11252424.58 | J40: 16228575.83 | L40: 35 | M40: 31935.33333 | N40: 32144.08333 | O40: 32288.58333 | P40: 32497.16667 | Q40: 32641.75 | S40: 16241164.08 | T40: 11252424.58 | U40: 16228575.83 | V40: 11259248.42 | X40: 35 | Y40: 255772 | Z40: 127452 | AA40: 383224 | AB40: 2076 | AC40: 3512 | AD40: 5586 | AE40: 7024 | AG40: 1672 | AH40: 2829 | AI40: 4500 | AJ40: 5658 | AL40: 2505 | AM40: 4239 | AN40: 6742 | AO40: 8477 | AQ40: 383224 | AR40: 385729 | AS40: 387463 | AT40: 389966 | AU40: 391701 | AW40: 255772 | AX40: 127452.2107 | AY40: 383224 | BA40: 2505 | BB40: 4239 | BC40: 6742 | BD40: 8477 | BF40: 383224 | BG40: 385729 | BH40: 387463 | BI40: 389966 | BJ40: 391701 | BL40: 35 | BM40: 199.1808732 | BN40: 200.4828482 | BO40: 201.3840956 | BP40: 202.6850312 | BQ40: 203.5867983 | BS40: 35 | BT40: 298.7713098 | BU40: 300.7242723 | BV40: 302.0761435 | BW40: 304.0275468 | BX40: 305.3801975 | BZ40: 35 | CA40: 99.59043659 | CB40: 100.2414241 | CC40: 100.6920478 | CD40: 101.3425156 | CE40: 101.7933992
A41: 36 | B41: 32487.5 | C41: 32671.16667 | D41: 32798.16667 | E41: 32981.66667 | F41: 33108.83333 | H41: 14294020.5 | I41: 9894094.167 | J41: 14281389.67 | L41: 36 | M41: 32487.5 | N41: 32671.16667 | O41: 32798.16667 | P41: 32981.66667 | Q41: 33108.83333 | S41: 14294020.5 | T41: 9894094.167 | U41: 14281389.67 | V41: 9907346.167 | X41: 36 | Y41: 260194 | Z41: 129656 | AA41: 389850 | AB41: 1826 | AC41: 3089 | AD41: 4914 | AE41: 6177 | AG41: 1471 | AH41: 2488 | AI41: 3958 | AJ41: 4976 | AL41: 2204 | AM41: 3728 | AN41: 5930 | AO41: 7456 | AQ41: 389850 | AR41: 392054 | AS41: 393578 | AT41: 395780 | AU41: 397306 | AW41: 260194 | AX41: 129655.711 | AY41: 389850 | BA41: 2204 | BB41: 3728 | BC41: 5930 | BD41: 7456 | BF41: 389850 | BG41: 392054 | BH41: 393578 | BI41: 395780 | BJ41: 397306 | BL41: 36 | BM41: 202.6247401 | BN41: 203.7702703 | BO41: 204.5623701 | BP41: 205.7068607 | BQ41: 206.5 | BS41: 36 | BT41: 303.9371102 | BU41: 305.6554054 | BV41: 306.8435551 | BW41: 308.5602911 | BX41: 309.75 | BZ41: 36 | CA41: 101.3123701 | CB41: 101.8851351 | CC41: 102.281185 | CD41: 102.8534304 | CE41: 103.25
A42: 37 | B42: 33051.58333 | C42: 33208.5 | D42: 33317.25 | E42: 33474.25 | F42: 33582.83333 | H42: 12217473.83 | I42: 8477537.25 | J42: 12224210.25 | L42: 37 | M42: 33051.58333 | N42: 33208.5 | O42: 33317.25 | P42: 33474.25 | Q42: 33582.83333 | S42: 12217473.83 | T42: 8477537.25 | U42: 12224210.25 | V42: 8464861.5 | X42: 37 | Y42: 264712 | Z42: 131907 | AA42: 396619 | AB42: 1560 | AC42: 2642 | AD42: 4202 | AE42: 5282 | AG42: 1257 | AH42: 2128 | AI42: 3385 | AJ42: 4255 | AL42: 1883 | AM42: 3188 | AN42: 5072 | AO42: 6375 | AQ42: 396619 | AR42: 398502 | AS42: 399807 | AT42: 401691 | AU42: 402994 | AW42: 264712 | AX42: 131907.0484 | AY42: 396619 | BA42: 1883 | BB42: 3188 | BC42: 5072 | BD42: 6375 | BF42: 396619 | BG42: 398502 | BH42: 399807 | BI42: 401691 | BJ42: 402994 | BL42: 37 | BM42: 206.1429314 | BN42: 207.1216216 | BO42: 207.799896 | BP42: 208.779106 | BQ42: 209.456341 | BS42: 37 | BT42: 309.2143971 | BU42: 310.6824324 | BV42: 311.6998441 | BW42: 313.168659 | BX42: 314.1845114 | BZ42: 37 | CA42: 103.0714657 | CB42: 103.5608108 | CC42: 103.899948 | CD42: 104.389553 | CE42: 104.7281705
A43: 38 | B43: 33650.41667 | C43: 33781.75 | D43: 33872.75 | E43: 34004.16667 | F43: 34095.25 | H43: 10231552.42 | I43: 7099840.75 | J43: 10238245.5 | L43: 38 | M43: 33650.41667 | N43: 33781.75 | O43: 33872.75 | P43: 34004.16667 | Q43: 34095.25 | S43: 10231552.42 | T43: 7099840.75 | U43: 10238245.5 | V43: 7106533.917 | X43: 38 | Y43: 269508 | Z43: 134297 | AA43: 403805 | AB43: 1306 | AC43: 2211 | AD43: 3517 | AE43: 4423 | AG43: 1052 | AH43: 1781 | AI43: 2833 | AJ43: 3563 | AL43: 1576 | AM43: 2668 | AN43: 4245 | AO43: 5338 | AQ43: 403805 | AR43: 405381 | AS43: 406473 | AT43: 408050 | AU43: 409143 | AW43: 269508 | AX43: 134296.9144 | AY43: 403805 | BA43: 1576 | BB43: 2668 | BC43: 4245 | BD43: 5338 | BF43: 403805 | BG43: 405381 | BH43: 406473 | BI43: 408050 | BJ43: 409143 | BL43: 38 | BM43: 209.8778586 | BN43: 210.6969854 | BO43: 211.264553 | BP43: 212.0841996 | BQ43: 212.6522869 | BS43: 38 | BT43: 314.8167879 | BU43: 316.0454782 | BV43: 316.8968295 | BW43: 318.1262994 | BX43: 318.9784304 | BZ43: 38 | CA43: 104.9389293 | CB43: 105.3484927 | CC43: 105.6322765 | CD43: 106.0420998 | CE43: 106.3261435
A44: 39 | B44: 34251.58333 | C44: 34352.75 | D44: 34422.75 | E44: 34523.91667 | F44: 34594.08333 | H44: 7889742.083 | I44: 5469782.75 | J44: 7889913.25 | L44: 39 | M44: 34251.58333 | N44: 34352.75 | O44: 34422.75 | P44: 34523.91667 | Q44: 34594.08333 | S44: 7889742.083 | T44: 5469782.75 | U44: 7889913.25 | V44: 5482895.417 | X44: 39 | Y44: 274323 | Z44: 136696 | AA44: 411019 | AB44: 1006 | AC44: 1702 | AD44: 2708 | AE44: 3405 | AG44: 810 | AH44: 1371 | AI44: 2181 | AJ44: 2743 | AL44: 1214 | AM44: 2054 | AN44: 3268 | AO44: 4110 | AQ44: 411019 | AR44: 412233 | AS44: 413073 | AT44: 414287 | AU44: 415129 | AW44: 274323 | AX44: 136696.2482 | AY44: 411019 | BA44: 1214 | BB44: 2054 | BC44: 3268 | BD44: 4110 | BF44: 411019 | BG44: 412233 | BH44: 413073 | BI44: 414287 | BJ44: 415129 | BL44: 39 | BM44: 213.6273389 | BN44: 214.258316 | BO44: 214.6949064 | BP44: 215.3258836 | BQ44: 215.7635135 | BS44: 39 | BT44: 320.4410083 | BU44: 321.387474 | BV44: 322.0423597 | BW44: 322.9888254 | BX44: 323.6452703 | BZ44: 39 | CA44: 106.8136694 | CB44: 107.129158 | CC44: 107.3474532 | CD44: 107.6629418 | CE44: 107.8817568
A45: 40 | B45: 34866.41667 | C45: 34935.58333 | D45: 34983.5 | E45: 35052.83333 | F45: 35100.75 | H45: 5405588.917 | I45: 3755616.833 | J45: 5418647.5 | L45: 40 | M45: 34866.41667 | N45: 34935.58333 | O45: 34983.5 | P45: 35052.83333 | Q45: 35100.75 | S45: 5405588.917 | T45: 3755616.833 | U45: 5418647.5 | V45: 3755734.083 | X45: 40 | Y45: 279247 | Z45: 139150 | AA45: 418397 | AB45: 688 | AC45: 1165 | AD45: 1853 | AE45: 2330 | AG45: 554 | AH45: 938 | AI45: 1493 | AJ45: 1877 | AL45: 830 | AM45: 1405 | AN45: 2237 | AO45: 2812 | AQ45: 418397 | AR45: 419227 | AS45: 419802 | AT45: 420634 | AU45: 421209 | AW45: 279247 | AX45: 139149.8971 | AY45: 418397 | BA45: 830 | BB45: 1405 | BC45: 2237 | BD45: 2812 | BF45: =AY45 -> 418397 | BG45: 419227 | BH45: 419802 | BI45: 420634 | BJ45: 421209 | BL45: 40 | BM45: 217.4620582 | BN45: 217.8934511 | BO45: 218.1923077 | BP45: 218.6247401 | BQ45: 218.9235967 | BS45: 40 | BT45: 326.1930873 | BU45: 326.8401767 | BV45: 327.2884615 | BW45: 327.9371102 | BX45: 328.385395 | BZ45: 40 | CA45: 108.7310291 | CB45: 108.9467256 | CC45: 109.0961538 | CD45: 109.3123701 | CE45: 109.4617983
A46: 41 | B46: 35494.58333 | C46: 35530.08333 | D46: 35554.75 | E46: 35590.08333 | F46: 35614.83333 | H46: 2792034.083 | I46: 1950872.083 | J46: 2779152.75 | L46: 41 | M46: 35494.58333 | N46: 35530.08333 | O46: 35554.75 | P46: 35590.08333 | Q46: 35614.83333 | S46: 2792034.083 | T46: 1950872.083 | U46: 2779152.75 | V46: 1957402.833 | X46: 41 | Y46: 284278 | Z46: 141657 | AA46: 425935 | AB46: 353 | AC46: 598 | AD46: 950 | AE46: 1195 | AG46: 284 | AH46: 482 | AI46: 765 | AJ46: 963 | AL46: =ROUND(VLOOKUP($X46,$X:$AJ,(4+AL$4)+$AM$5)*(1+$AL$5),0) -> 426 | AM46: 722 | AN46: 1146 | AO46: 1443 | AQ46: 425935 | AR46: 426361 | AS46: 426657 | AT46: 427081 | AU46: 427378 | AW46: 284278 | AX46: 141656.8645 | AY46: 425935 | BA46: 426 | BB46: 722 | BC46: 1146 | BD46: 1443 | BF46: =AY46 -> 425935 | BG46: 426361 | BH46: 426657 | BI46: 427081 | BJ46: 427378 | BL46: 41 | BM46: 221.3799376 | BN46: 221.6013514 | BO46: 221.7551975 | BP46: 221.9755717 | BQ46: 222.1299376 | BS46: 41 | BT46: 332.0699064 | BU46: 332.402027 | BV46: 332.6327963 | BW46: 332.9633576 | BX46: 333.1949064 | BZ46: 41 | CA46: 110.6899688 | CB46: 110.8006757 | CC46: 110.8775988 | CD46: 110.9877859 | CE46: 111.0649688
A47: 42 | B47: 36136.33333 | C47: 36136.33333 | D47: 36136.33333 | E47: 36136.33333 | F47: 36136.33333 | H47: 36136.33333 | I47: 36136.33333 | J47: 36136.33333 | L47: 42 | M47: 36136.33333 | N47: 36136.33333 | O47: 36136.33333 | P47: 36136.33333 | Q47: 36136.33333 | S47: 36136.33333 | T47: 36136.33333 | U47: 36136.33333 | V47: 36136.33333 | X47: 42 | Y47: 289418 | Z47: 144218 | AA47: 433636 | AB47: 0 | AC47: 0 | AD47: 0 | AE47: 0 | AL47: 0 | AM47: 0 | AN47: 0 | AO47: 0 | AQ47: 433636 | AR47: 433636 | AS47: 433636 | AT47: 433636 | AU47: 433636 | AW47: 289418 | AX47: 144218.1471 | AY47: 433636 | BA47: 0 | BB47: 0 | BC47: 0 | BD47: 0 | BF47: 433636 | BG47: 433636 | BH47: 433636 | BI47: 433636 | BJ47: 433636 | BL47: 42 | BM47: 225.3825364 | BN47: 225.3825364 | BO47: 225.3825364 | BP47: 225.3825364 | BQ47: 225.3825364 | BS47: 42 | BT47: 338.0738046 | BU47: 338.0738046 | BV47: 338.0738046 | BW47: 338.0738046 | BX47: 338.0738046 | BZ47: 42 | CA47: 112.6912682 | CB47: 112.6912682 | CC47: 112.6912682 | CD47: 112.6912682 | CE47: 112.6912682
A48: 43 | B48: 36939.41667 | C48: 36939.41667 | D48: 36939.41667 | E48: 36939.41667 | F48: 36939.41667 | H48: 36939.41667 | I48: 36939.41667 | J48: 36939.41667 | L48: 43 | M48: 36939.41667 | N48: 36939.41667 | O48: 36939.41667 | P48: 36939.41667 | Q48: 36939.41667 | S48: 36939.41667 | T48: 36939.41667 | U48: 36939.41667 | V48: 36939.41667 | X48: 43 | Y48: 295850 | Z48: 147423 | AA48: 443273 | AB48: 0 | AC48: 0 | AD48: 0 | AE48: 0 | AL48: 0 | AM48: 0 | AN48: 0 | AO48: 0 | AQ48: 443273 | AR48: 443273 | AS48: 443273 | AT48: 443273 | AU48: 443273 | AW48: 295850 | AX48: 147423.2384 | AY48: 443273 | BA48: 0 | BB48: 0 | BC48: 0 | BD48: 0 | BF48: 443273 | BG48: 443273 | BH48: 443273 | BI48: 443273 | BJ48: 443273 | BL48: 43 | BM48: 230.3913721 | BN48: 230.3913721 | BO48: 230.3913721 | BP48: 230.3913721 | BQ48: 230.3913721 | BS48: 43 | BT48: 345.5870582 | BU48: 345.5870582 | BV48: 345.5870582 | BW48: 345.5870582 | BX48: 345.5870582 | BZ48: 43 | CA48: 115.1956861 | CB48: 115.1956861 | CC48: 115.1956861 | CD48: 115.1956861 | CE48: 115.1956861
A49: 44 | B49: 37764.75 | C49: 37764.75 | D49: 37764.75 | E49: 37764.75 | F49: 37764.75 | H49: 37764.75 | I49: 37764.75 | J49: 37764.75 | L49: 44 | M49: 37764.75 | N49: 37764.75 | O49: 37764.75 | P49: 37764.75 | Q49: 37764.75 | S49: 37764.75 | T49: 37764.75 | U49: 37764.75 | V49: 37764.75 | X49: 44 | Y49: 302460 | Z49: 150717 | AA49: 453177 | AB49: 0 | AC49: 0 | AD49: 0 | AE49: 0 | AL49: 0 | AM49: 0 | AN49: 0 | AO49: 0 | AQ49: 453177 | AR49: 453177 | AS49: 453177 | AT49: 453177 | AU49: 453177 | AW49: 302460 | AX49: 150717.0278 | AY49: 453177 | BA49: 0 | BB49: 0 | BC49: 0 | BD49: 0 | BF49: 453177 | BG49: 453177 | BH49: 453177 | BI49: 453177 | BJ49: 453177 | BL49: 44 | BM49: 235.5389813 | BN49: 235.5389813 | BO49: 235.5389813 | BP49: 235.5389813 | BQ49: 235.5389813 | BS49: 44 | BT49: 353.3084719 | BU49: 353.3084719 | BV49: 353.3084719 | BW49: 353.3084719 | BX49: 353.3084719 | BZ49: 44 | CA49: 117.7694906 | CB49: 117.7694906 | CC49: 117.7694906 | CD49: 117.7694906 | CE49: 117.7694906
A50: 45 | B50: 38612.66667 | C50: 38612.66667 | D50: 38612.66667 | E50: 38612.66667 | F50: 38612.66667 | H50: 38612.66667 | I50: 38612.66667 | J50: 38612.66667 | L50: 45 | M50: 38612.66667 | N50: 38612.66667 | O50: 38612.66667 | P50: 38612.66667 | Q50: 38612.66667 | S50: 38612.66667 | T50: 38612.66667 | U50: 38612.66667 | V50: 38612.66667 | X50: 45 | Y50: 309251 | Z50: 154101 | AA50: 463352 | AB50: 0 | AC50: 0 | AD50: 0 | AE50: 0 | AL50: 0 | AM50: 0 | AN50: 0 | AO50: 0 | AQ50: 463352 | AR50: 463352 | AS50: 463352 | AT50: 463352 | AU50: 463352 | AW50: 309251 | AX50: 154101.0103 | AY50: 463352 | BA50: 0 | BB50: 0 | BC50: 0 | BD50: 0 | BF50: 463352 | BG50: 463352 | BH50: 463352 | BI50: 463352 | BJ50: 463352 | BL50: 45 | BM50: 240.8274428 | BN50: 240.8274428 | BO50: 240.8274428 | BP50: 240.8274428 | BQ50: 240.8274428 | BS50: 45 | BT50: 361.2411642 | BU50: 361.2411642 | BV50: 361.2411642 | BW50: 361.2411642 | BX50: 361.2411642 | BZ50: 45 | CA50: 120.4137214 | CB50: 120.4137214 | CC50: 120.4137214 | CD50: 120.4137214 | CE50: 120.4137214
A51: 46 | B51: 39483.91667 | C51: 39483.91667 | D51: 39483.91667 | E51: 39483.91667 | F51: 39483.91667 | H51: 39483.91667 | I51: 39483.91667 | J51: 39483.91667 | L51: 46 | M51: 39483.91667 | N51: 39483.91667 | O51: 39483.91667 | P51: 39483.91667 | Q51: 39483.91667 | S51: 39483.91667 | T51: 39483.91667 | U51: 39483.91667 | V51: 39483.91667 | X51: 46 | Y51: 316229 | Z51: 157578 | AA51: 473807 | AB51: 0 | AC51: 0 | AD51: 0 | AE51: 0 | AL51: 0 | AM51: 0 | AN51: 0 | AO51: 0 | AQ51: 473807 | AR51: 473807 | AS51: 473807 | AT51: 473807 | AU51: 473807 | AW51: 316229 | AX51: 157578.1756 | AY51: 473807 | BA51: 0 | BB51: 0 | BC51: 0 | BD51: 0 | BF51: 473807 | BG51: 473807 | BH51: 473807 | BI51: 473807 | BJ51: 473807 | BL51: 46 | BM51: 246.2614345 | BN51: 246.2614345 | BO51: 246.2614345 | BP51: 246.2614345 | BQ51: 246.2614345 | BS51: 46 | BT51: 369.3921518 | BU51: 369.3921518 | BV51: 369.3921518 | BW51: 369.3921518 | BX51: 369.3921518 | BZ51: 46 | CA51: 123.1307173 | CB51: 123.1307173 | CC51: 123.1307173 | CD51: 123.1307173 | CE51: 123.1307173
A52: 47 | B52: 40186.75 | C52: 40186.75 | D52: 40186.75 | E52: 40186.75 | F52: 40186.75 | H52: 40186.75 | I52: 40186.75 | J52: 40186.75 | L52: 47 | M52: 40186.75 | N52: 40186.75 | O52: 40186.75 | P52: 40186.75 | Q52: 40186.75 | S52: 40186.75 | T52: 40186.75 | U52: 40186.75 | V52: 40186.75 | X52: 47 | Y52: 321858 | Z52: 160383 | AA52: 482241 | AB52: 0 | AC52: 0 | AD52: 0 | AE52: 0 | AL52: 0 | AM52: 0 | AN52: 0 | AO52: 0 | AQ52: 482241 | AR52: 482241 | AS52: 482241 | AT52: 482241 | AU52: 482241 | AW52: 321858 | AX52: 160383.1288 | AY52: 482241 | BA52: 0 | BB52: 0 | BC52: 0 | BD52: 0 | BF52: 482241 | BG52: 482241 | BH52: 482241 | BI52: 482241 | BJ52: 482241 | BL52: 47 | BM52: 250.6450104 | BN52: 250.6450104 | BO52: 250.6450104 | BP52: 250.6450104 | BQ52: 250.6450104 | BS52: 47 | BT52: 375.9675156 | BU52: 375.9675156 | BV52: 375.9675156 | BW52: 375.9675156 | BX52: 375.9675156 | BZ52: 47 | CA52: 125.3225052 | CB52: 125.3225052 | CC52: 125.3225052 | CD52: 125.3225052 | CE52: 125.3225052
A53: 48 | B53: 42034.08333 | C53: 42034.08333 | D53: 42034.08333 | E53: 42034.08333 | F53: 42034.08333 | H53: 42034.08333 | I53: 42034.08333 | J53: 42034.08333 | L53: 48 | M53: 42034.08333 | N53: 42034.08333 | O53: 42034.08333 | P53: 42034.08333 | Q53: 42034.08333 | S53: 42034.08333 | T53: 42034.08333 | U53: 42034.08333 | V53: 42034.08333 | X53: 48 | Y53: 336653 | Z53: 167756 | AA53: 504409 | AB53: 0 | AC53: 0 | AD53: 0 | AE53: 0 | AL53: 0 | AM53: 0 | AN53: 0 | AO53: 0 | AQ53: 504409 | AR53: 504409 | AS53: 504409 | AT53: 504409 | AU53: 504409 | AW53: 336653 | AX53: 167755.5365 | AY53: 504409 | BA53: 0 | BB53: 0 | BC53: 0 | BD53: 0 | BF53: 504409 | BG53: 504409 | BH53: 504409 | BI53: 504409 | BJ53: 504409 | BL53: 48 | BM53: 262.1668399 | BN53: 262.1668399 | BO53: 262.1668399 | BP53: 262.1668399 | BQ53: 262.1668399 | BS53: 48 | BT53: 393.2502599 | BU53: 393.2502599 | BV53: 393.2502599 | BW53: 393.2502599 | BX53: 393.2502599 | BZ53: 48 | CA53: 131.08342 | CB53: 131.08342 | CC53: 131.08342 | CD53: 131.08342 | CE53: 131.08342
A54: 49 | B54: 44855 | C54: 44855 | D54: 44855 | E54: 44855 | F54: 44855 | H54: 44855 | I54: 44855 | J54: 44855 | L54: 49 | M54: =BF54/12 -> 44855 | N54: 44855 | O54: 44855 | P54: 44855 | Q54: 44855 | S54: 44855 | T54: 44855 | U54: 44855 | V54: 44855 | X54: 49 | Y54: 359246 | Z54: 179014 | AA54: 538260 | AB54: 0 | AC54: 0 | AD54: 0 | AE54: 0 | AL54: 0 | AM54: 0 | AN54: 0 | AO54: 0 | AQ54: 538260 | AR54: 538260 | AS54: 538260 | AT54: 538260 | AU54: 538260 | AW54: 359246 | AX54: 179013.7188 | AY54: 538260 | BA54: 0 | BB54: 0 | BC54: 0 | BD54: 0 | BF54: 538260 | BG54: 538260 | BH54: 538260 | BI54: 538260 | BJ54: 538260 | BL54: 49 | BM54: 279.7609148 | BN54: 279.7609148 | BO54: 279.7609148 | BP54: 279.7609148 | BQ54: 279.7609148 | BS54: 49 | BT54: 419.6413721 | BU54: 419.6413721 | BV54: 419.6413721 | BW54: 419.6413721 | BX54: 419.6413721 | BZ54: 49 | CA54: 139.8804574 | CB54: 139.8804574 | CC54: 139.8804574 | CD54: 139.8804574 | CE54: 139.8804574
A55: 50 | B55: 47986.16667 | C55: 47986.16667 | D55: 47986.16667 | E55: 47986.16667 | F55: 47986.16667 | H55: 47986.16667 | I55: 47986.16667 | J55: 47986.16667 | L55: 50 | M55: =BF55/12 -> 49118 | N55: 49118 | O55: 49118 | P55: 49118 | Q55: 49118 | S55: 49118 | T55: 49118 | U55: 49118 | V55: 49118 | X55: 50 | Y55: 384324 | Z55: 191510 | AA55: 575834 | AB55: 0 | AC55: 0 | AD55: 0 | AE55: 0 | AL55: 0 | AM55: 0 | AN55: 0 | AO55: 0 | AQ55: 575834 | AR55: 575834 | AS55: 575834 | AT55: 575834 | AU55: 575834 | AW55: 393389 | AX55: 196027.3123 | AY55: 589416 | BA55: 0 | BB55: 0 | BC55: 0 | BD55: 0 | BF55: 589416 | BG55: 589416 | BH55: 589416 | BI55: 589416 | BJ55: 589416 | BL55: 50 | BM55: 299.2900208 | BN55: 299.2900208 | BO55: 299.2900208 | BP55: 299.2900208 | BQ55: 299.2900208 | BS55: 50 | BT55: 448.9350312 | BU55: 448.9350312 | BV55: 448.9350312 | BW55: 448.9350312 | BX55: 448.9350312 | BZ55: 50 | CA55: 149.6450104 | CB55: 149.6450104 | CC55: 149.6450104 | CD55: 149.6450104 | CE55: 149.6450104
A56: 51 | B56: 53004.25 | C56: 53004.25 | D56: 53004.25 | E56: 53004.25 | F56: 53004.25 | H56: 53004.25 | I56: 53004.25 | J56: 53004.25 | L56: 51 | M56: 54431 | N56: 54431 | O56: 54431 | P56: 54431 | Q56: 54431 | S56: 54431 | T56: 54431 | U56: 54431 | V56: 54431 | X56: 51 | Y56: 424514 | Z56: 211537 | AA56: 636051 | AL56: 0 | AM56: 0 | AN56: 0 | AO56: 0 | AQ56: 636051 | AR56: 636051 | AS56: 636051 | AT56: 636051 | AU56: 636051 | AW56: 435941 | AX56: 217231.1441 | AY56: 653172 | BA56: 0 | BB56: 0 | BC56: 0 | BD56: 0 | BF56: 653172 | BG56: 653172 | BH56: 653172 | BI56: 653172 | BJ56: 653172 | BL56: 51 | BM56: 330.5878378 | BN56: 330.5878378 | BO56: 330.5878378 | BP56: 330.5878378 | BQ56: 330.5878378 | BS56: 51 | BT56: 495.8817568 | BU56: 495.8817568 | BV56: 495.8817568 | BW56: 495.8817568 | BX56: 495.8817568 | BZ56: 51 | CA56: 165.2939189 | CB56: 165.2939189 | CC56: 165.2939189 | CD56: 165.2939189 | CE56: 165.2939189
A57: 52 | B57: 60312.25 | C57: 60312.25 | D57: 60312.25 | E57: 60312.25 | F57: 60312.25 | H57: 60312.25 | I57: 60312.25 | J57: 60312.25 | L57: 52 | M57: 61991.16667 | N57: 61991.16667 | O57: 61991.16667 | P57: 61991.16667 | Q57: 61991.16667 | S57: 61991.16667 | T57: 61991.16667 | U57: 61991.16667 | V57: 61991.16667 | X57: 52 | Y57: 483044 | Z57: 240703 | AA57: 723747 | AL57: 0 | AM57: 0 | AN57: 0 | AO57: 0 | AQ57: 723747 | AR57: 723747 | AS57: 723747 | AT57: 723747 | AU57: 723747 | AW57: 496491 | AX57: 247403.4513 | AY57: 743894 | BA57: 0 | BB57: 0 | BC57: 0 | BD57: 0 | BF57: 743894 | BG57: 743894 | BH57: 743894 | BI57: 743894 | BJ57: 743894 | BL57: 52 | BM57: 376.1678794 | BN57: 376.1678794 | BO57: 376.1678794 | BP57: 376.1678794 | BQ57: 376.1678794 | BS57: 52 | BT57: 564.2518191 | BU57: 564.2518191 | BV57: 564.2518191 | BW57: 564.2518191 | BX57: 564.2518191 | BZ57: 52 | CA57: 188.0839397 | CB57: 188.0839397 | CC57: 188.0839397 | CD57: 188.0839397 | CE57: 188.0839397
A58: 53 | B58: 66220.58333 | C58: 66220.58333 | D58: 66220.58333 | E58: 66220.58333 | F58: 66220.58333 | H58: 66220.58333 | I58: 66220.58333 | J58: 66220.58333 | L58: 53 | M58: 69006.5 | N58: 69006.5 | O58: 69006.5 | P58: 69006.5 | Q58: 69006.5 | S58: 69006.5 | T58: 69006.5 | U58: 69006.5 | V58: 69006.5 | X58: 53 | Y58: 530364 | Z58: 264283 | AA58: 794647 | AL58: 0 | AM58: 0 | AN58: 0 | AO58: 0 | AQ58: 794647 | AR58: 794647 | AS58: 794647 | AT58: 794647 | AU58: 794647 | AW58: 552677 | AX58: 275401.1598 | AY58: 828078 | BA58: 0 | BB58: 0 | BC58: 0 | BD58: 0 | BF58: 828078 | BG58: 828078 | BH58: 828078 | BI58: 828078 | BJ58: 828078 | BL58: 53 | BM58: 413.0181913 | BN58: 413.0181913 | BO58: 413.0181913 | BP58: 413.0181913 | BQ58: 413.0181913 | BS58: 53 | BT58: 619.5272869 | BU58: 619.5272869 | BV58: 619.5272869 | BW58: 619.5272869 | BX58: 619.5272869 | BZ58: 53 | CA58: 206.5090956 | CB58: 206.5090956 | CC58: 206.5090956 | CD58: 206.5090956 | CE58: 206.5090956
A59: 54 | B59: 74097.25 | C59: 74097.25 | D59: 74097.25 | E59: 74097.25 | F59: 74097.25 | H59: 74097.25 | I59: 74097.25 | J59: 74097.25 | L59: 54 | M59: 77750 | N59: 77750 | O59: 77750 | P59: 77750 | Q59: 77750 | S59: 77750 | T59: 77750 | U59: 77750 | V59: 77750 | X59: 54 | Y59: 593449 | Z59: 295718 | AA59: 889167 | AL59: 0 | AM59: 0 | AN59: 0 | AO59: 0 | AQ59: 889167 | AR59: 889167 | AS59: 889167 | AT59: 889167 | AU59: 889167 | AW59: 622704 | AX59: 310295.894 | AY59: 933000 | BA59: 0 | BB59: 0 | BC59: 0 | BD59: 0 | BF59: 933000 | BG59: 933000 | BH59: 933000 | BI59: 933000 | BJ59: 933000 | BL59: 54 | BM59: 462.1450104 | BN59: 462.1450104 | BO59: 462.1450104 | BP59: 462.1450104 | BQ59: 462.1450104 | BS59: 54 | BT59: 693.2175156 | BU59: 693.2175156 | BV59: 693.2175156 | BW59: 693.2175156 | BX59: 693.2175156 | BZ59: 54 | CA59: 231.0725052 | CB59: 231.0725052 | CC59: 231.0725052 | CD59: 231.0725052 | CE59: 231.0725052
A60: 55 | B60: 83565.16667 | C60: 83565.16667 | D60: 83565.16667 | E60: 83565.16667 | F60: 83565.16667 | H60: 83565.16667 | I60: 83565.16667 | J60: 83565.16667 | L60: 55 | M60: 87217.91667 | N60: 87217.91667 | O60: 87217.91667 | P60: 87217.91667 | Q60: 87217.91667 | S60: 87217.91667 | T60: 87217.91667 | U60: 87217.91667 | V60: 87217.91667 | X60: 55 | Y60: 669278 | Z60: 333504 | AA60: 1002782 | AL60: 0 | AM60: 0 | AN60: 0 | AO60: 0 | AQ60: 1002782 | AR60: 1002782 | AS60: 1002782 | AT60: 1002782 | AU60: 1002782 | AW60: 698533 | AX60: 348081.788 | AY60: 1046615 | BA60: 0 | BB60: 0 | BC60: 0 | BD60: 0 | BF60: 1046615 | BG60: 1046615 | BH60: 1046615 | BI60: 1046615 | BJ60: 1046615 | BL60: 55 | BM60: 521.1964657 | BN60: 521.1964657 | BO60: 521.1964657 | BP60: 521.1964657 | BQ60: 521.1964657 | BS60: 55 | BT60: 781.7946985 | BU60: 781.7946985 | BV60: 781.7946985 | BW60: 781.7946985 | BX60: 781.7946985 | BZ60: 55 | CA60: 260.5982328 | CB60: 260.5982328 | CC60: 260.5982328 | CD60: 260.5982328 | CE60: 260.5982328
A61: 56 | B61: 94182 | C61: 94182 | D61: 94182 | E61: 94182 | F61: 94182 | H61: 94182 | I61: 94182 | J61: 94182 | L61: 56 | M61: 97835 | N61: 97835 | O61: 97835 | P61: 97835 | Q61: 97835 | S61: 97835 | T61: 97835 | U61: 97835 | V61: 97835 | X61: 56 | Y61: 754309 | Z61: 375875 | AA61: 1130184 | AL61: 0 | AM61: 0 | AN61: 0 | AO61: 0 | AQ61: 1130184 | AR61: 1130184 | AS61: 1130184 | AT61: 1130184 | AU61: 1130184 | AW61: 783566 | AX61: 390454.0721 | AY61: 1174020 | BA61: 0 | BB61: 0 | BC61: 0 | BD61: 0 | BF61: 1174020 | BG61: 1174020 | BH61: 1174020 | BI61: 1174020 | BJ61: 1174020 | BL61: 56 | BM61: 587.4137214 | BN61: 587.4137214 | BO61: 587.4137214 | BP61: 587.4137214 | BQ61: 587.4137214 | BS61: 56 | BT61: 881.1205821 | BU61: 881.1205821 | BV61: 881.1205821 | BW61: 881.1205821 | BX61: 881.1205821 | BZ61: 56 | CA61: 293.7068607 | CB61: 293.7068607 | CC61: 293.7068607 | CD61: 293.7068607 | CE61: 293.7068607
Z62: =ROUND(Y62*valgt_regulering,0) -> 0
Z63: 0
Z64: 0
Z65: 0
Z66: 0
Z67: 0
Z68: 0
Z69: 0
A70: 2006-10-01 | B70: 4131.67 | C70: 4204.98 | D70: 4265.26 | E70: 4358.11 | F70: 4420 | Z70: 0
A71: 2007-04-01 | B71: 4229.54 | C71: 4303.89 | D71: 4365.01 | E71: 4459.17 | F71: 4521.93 | Z71: 0

Sheet Forside
J11: Lønniveau: | K11: 2023-04-01
D15: Hvad betyder det for lønnen, hvis man ændrer på lønsammensætning eller timetal ?

Sheet Omregner
D11: Valgt lønniveau: | F11: =Forside!K11 -> 2023-04-01 | H11: Timetal: | I11: 37
B13: 1) Grundbeløb pr. 31-3-2000 omregnet til nutidskr.
C14: Årligt grundbeløb: | E14: 11300
E16: år | F16: måned
C17: Aktuelt beløb | E17: =ROUND(((kr_omregnes*valgt_regulering)/37*I11),0) -> 16931 | F17: =E17/12 -> 1410.916667
B20: 2) Beløb der skal omregnes til '31-3-2000-niveau'
C21: Månedligt beløb | E21: 1296.9
E23: år | F23: måned
C24: Grundbeløb pr. 31-3-2000 | E24: =ROUND(E21*12/valgt_regulering,0)/I11*37 -> 10387 | F24: =E24/12 -> 865.5833333

Sheet Omregningstabel (hidden)
D1: 1.362716 | E1: 1.382496 | F1: 1.398079 | G1: 1.018559 | H1: 1.040662 | I1: 1.051157 | J1: 1.061566 | K1: 1.083422 | L1: 1.08868 | M1: 1.092675 | N1: 1.109523 | O1: 1.120038 | P1: 1.124454
B7: Indtast beløb: | C7: 1000
C10: 1/10 '84
C11: =Beløb -> 1000 | D11: 1/4 '98
B12: 1/4-98 | C12: =Beløb*_1_4_1998 -> 1362.716 | D12: =Beløb -> 1000 | E12: 1/10 '98
B13: 1/10-98 | C13: =Beløb*_1_10_1998 -> 1382.496 | D13: =Beløb/_1_4_1998*_1_10_1998 -> 1014.51513 | E13: =Beløb -> 1000 | F13: 1/4 '99
B14: 1/4-99 | C14: =Beløb*_1_4_1999 -> 1398.079 | D14: =Beløb/_1_4_1998*_1_4_1999 -> 1025.950381 | E14: =Beløb/_1_10_1998*_1_4_1999 -> 1011.271642 | F14: =Beløb -> 1000
B15: Grundbeløb pr. 31/3-00 | C15: =ROUND(C14,-2) -> 1400 | D15: =ROUND(D14,-2) -> 1000 | E15: =ROUND(E14,-2) -> 1000 | F15: =ROUND(F14,-2) -> 1000 | G15: 1/4 '00
B16: 1/4-00 | C16: =Nyt_beløb_1*_1_4_2000 -> 1425.9826 | D16: =Nyt_beløb_2*_1_4_2000 -> 1018.559 | E16: =Nyt_beløb_3*_1_4_2000 -> 1018.559 | F16: =Nyt_beløb_4*_1_4_2000 -> 1018.559 | G16: =Beløb -> 1000 | H16: 1/4 '01
B17: 1/4-01 | C17: =Nyt_beløb_1*_1_4_2001 -> 1456.9268 | D17: =Nyt_beløb_2*_1_4_2001 -> 1040.662 | E17: =Nyt_beløb_3*_1_4_2001 -> 1040.662 | F17: =Nyt_beløb_4*_1_4_2001 -> 1040.662 | G17: =beløb_4_00/_1_4_2000*_1_4_2001 -> 1021.700265 | H17: =Beløb -> 1000 | I17: 1/10 '01
B18: 1/10-01 | C18: =Nyt_beløb_1*_1_10_2001 -> 1471.6198 | D18: =Nyt_beløb_2*_1_10_2001 -> 1051.157 | E18: =Nyt_beløb_3*_1_10_2001 -> 1051.157 | F18: =Nyt_beløb_4*_1_10_2001 -> 1051.157 | G18: =beløb_4_00/_1_4_2000*_1_10_2001 -> 1032.004037 | H18: =beløb_4_01/_1_4_2001*_1_10_2001 -> 1010.084927 | I18: =Beløb -> 1000 | J18: 1/4 '02
B19: 1/4-02 | C19: =Nyt_beløb_1*_1_4_2002 -> 1486.1924 | D19: =Nyt_beløb_2*_1_4_2002 -> 1061.566 | E19: =Nyt_beløb_3*_1_4_2002 -> 1061.566 | F19: =Nyt_beløb_4*_1_4_2002 -> 1061.566 | G19: =beløb_4_00/_1_4_2000*_1_4_2002 -> 1042.223376 | H19: =beløb_4_01/_1_4_2001*_1_4_2002 -> 1020.087214 | I19: =beløb_10_01/_1_10_2001*_1_4_2002 -> 1009.902422 | J19: =Beløb -> 1000 | K19: 1/4 '03
B20: 1/4-03 | C20: =Nyt_beløb_1*_1_4_2003 -> 1516.7908 | D20: =Nyt_beløb_2*_1_4_2003 -> 1083.422 | E20: =Nyt_beløb_3*_1_4_2003 -> 1083.422 | F20: =Nyt_beløb_4*_1_4_2003 -> 1083.422 | G20: =beløb_4_00/_1_4_2000*_1_4_2003 -> 1063.681142 | H20: =beløb_4_01/_1_4_2001*_1_4_2003 -> 1041.08923 | I20: =beløb_10_01/_1_10_2001*_1_4_2003 -> 1030.694749 | J20: =beløb_4_02/_1_4_2002*_1_4_2003 -> 1020.588451 | K20: =Beløb -> 1000 | L20: 1/8 '03
B21: 1/8-03 | C21: =Nyt_beløb_1*_1_8_2003 -> 1524.152 | D21: =Nyt_beløb_2*_1_8_2003 -> 1088.68 | E21: =Nyt_beløb_3*_1_8_2003 -> 1088.68 | F21: =Nyt_beløb_4*_1_8_2003 -> 1088.68 | G21: =beløb_4_00/_1_4_2000*_1_8_2003 -> 1068.843337 | H21: =beløb_4_01/_1_4_2001*_1_8_2003 -> 1046.141783 | I21: =beløb_10_01/_1_10_2001*_1_8_2003 -> 1035.696856 | J21: =beløb_4_02/_1_4_2002*_1_8_2003 -> 1025.541511 | K21: =beløb_4_03/_1_4_2003*_1_8_2003 -> 1004.853141 | L21: =Beløb -> 1000 | M21: 1/10 '03
B22: 1/10-03 | C22: =Nyt_beløb_1*_1_10_2003 -> 1529.745 | D22: =Nyt_beløb_2*_1_10_2003 -> 1092.675 | E22: =Nyt_beløb_3*_1_10_2003 -> 1092.675 | F22: =Nyt_beløb_4*_1_10_2003 -> 1092.675 | G22: =beløb_4_00/_1_4_2000*_1_10_2003 -> 1072.765544 | H22: =beløb_4_01/_1_4_2001*_1_10_2003 -> 1049.980685 | I22: =beløb_4_01/_1_4_2001*_1_10_2003 -> 1049.980685 | J22: =beløb_4_02/_1_4_2002*_1_10_2003 -> 1029.304819 | K22: =beløb_4_03/_1_4_2003*_1_10_2003 -> 1008.540532 | L22: =beløb_8_03/_1_8_2003*_1_10_2003 -> 1003.669582 | M22: =Beløb -> 1000 | N22: 1/4 '04
B23: 1/4 '04 | C23: =Nyt_beløb_1*_1_4_2004 -> 1553.3322 | D23: =Nyt_beløb_2*_1_4_2004 -> 1109.523 | E23: =Nyt_beløb_3*_1_4_2004 -> 1109.523 | F23: =Nyt_beløb_4*_1_4_2004 -> 1109.523 | G23: =beløb_4_00/_1_4_2000*_1_4_2004 -> 1089.30656 | H23: =beløb_4_01/_1_4_2001*_1_4_2004 -> 1066.17038 | I23: =beløb_4_01/_1_4_2001*_1_4_2004 -> 1066.17038 | J23: =beløb_4_02/_1_4_2002*_1_4_2004 -> 1045.175712 | K23: =beløb_4_03/_1_4_2003*_1_4_2004 -> 1024.091259 | L23: =beløb_8_03/_1_8_2003*_1_4_2004 -> 1019.145203 | M23: =beløb_10_03/_1_10_2003*_1_4_2004 -> 1015.41904 | N23: =Beløb -> 1000 | O23: 1/8 '04
B24: 1/8 '04 | C24: =Nyt_beløb_1*_1_8_2004 -> 1568.0532 | D24: =Nyt_beløb_2*_1_8_2004 -> 1120.038 | E24: =Nyt_beløb_3*_1_8_2004 -> 1120.038 | F24: =Nyt_beløb_4*_1_8_2004 -> 1120.038 | G24: =beløb_4_00/_1_4_2000*_1_8_2004 -> 1099.629967 | H24: =beløb_4_01/_1_4_2001*_1_8_2004 -> 1076.274525 | I24: =beløb_4_01/_1_4_2001*_1_8_2004 -> 1076.274525 | J24: =beløb_4_02/_1_4_2002*_1_8_2004 -> 1055.08089 | K24: =beløb_4_03/_1_4_2003*_1_8_2004 -> 1033.796618 | L24: =beløb_8_03/_1_8_2003*_1_8_2004 -> 1028.803689 | M24: =beløb_10_03/_1_10_2003*_1_8_2004 -> 1025.042213 | N24: =beløb_4_04/_1_4_2004*_1_8_2004 -> 1009.477046 | O24: =Beløb -> 1000 | P24: 1/10 '04
B25: 1/10 '04 | C25: =Nyt_beløb_1*_1_10_2004 -> 1574.2356 | D25: =Nyt_beløb_2*_1_10_2004 -> 1124.454 | E25: =Nyt_beløb_3*_1_10_2004 -> 1124.454 | F25: =Nyt_beløb_4*_1_10_2004 -> 1124.454 | G25: =beløb_4_00/_1_4_2000*_1_10_2004 -> 1103.965504 | H25: =beløb_4_01/_1_4_2001*_1_10_2004 -> 1080.517978 | I25: =beløb_4_01/_1_4_2001*_1_10_2004 -> 1080.517978 | J25: =beløb_4_02/_1_4_2002*_1_10_2004 -> 1059.240782 | K25: =beløb_4_03/_1_4_2003*_1_10_2004 -> 1037.872593 | L25: =beløb_8_03/_1_8_2003*_1_10_2004 -> 1032.859977 | M25: =beløb_10_03/_1_10_2003*_1_10_2004 -> 1029.083671 | N25: =beløb_4_04/_1_4_2004*_1_10_2004 -> 1013.457134 | O25: =beløb_8_04/_1_8_2004*_1_10_2004 -> 1003.942723 | P25: =Beløb -> 1000

Sheet Tillæg_trin (hidden)
A1: 3
B3: Valgt lønniveau: | C3: =Forside!K11 -> 2023-04-01
B5: Løngruppe | D5: 3
B6: Timer/uge | D6: 37
B7: Pensions-% inkl. evt. fritvalgs-% | D7: 13.89
B8: Særlig feriegodtgørelse, aktuel pct. | D8: 1.95
B10: Stigning: | C10: Fra | D10: Til
B11: Løntrin | C11: 18 | D11: 19
B13: Løn | C13: =(VLOOKUP(til_trin,Lønark!A5:F61,løngruppe+2,FALSE)-VLOOKUP(fra_trin,Lønark!A5:F61,løngruppe+2,FALSE))/37*timetal*12 -> 4263
B14: Pension inkl. evt. fritvalgstillæg | C14: =(VLOOKUP(til_trin,Lønark!L5:Q61,løngruppe+2,FALSE)-VLOOKUP(fra_trin,Lønark!L5:Q61,løngruppe+2,FALSE))/37*timetal*pensionsstatus%*12 -> 592.1307
B15: Ferietillæg | C15: =ferie_pct%*C13 -> 83.1285
B16: Årlig bruttoudgift i alt | C16: =ROUND(SUM(C13:C15),0) -> 4938

Sheet Tillæg_kr (hidden)
A1: 2
C3: Valgt lønniveau: | D3: =Forside!K11 -> 2023-04-01
A5: =VLOOKUP(dummy,reg_procenter,2,FALSE) ->  | C5: Årligt beløb, 31.3.2000 niveau | D5: 12900
C6: Timer/uge | D6: 30
C7: Pension-% inkl. evt. fritvalgs-% | D7: 13.89
C8: Særlig feriegodtg., aktuel pct. | D8: 1.95
C11: bruttoudgift / år | D11: bruttoudgift / md
B12: Løn | C12: =kr*valgt_regulering/37*timetal -> 15671.44995 | D12: =beløb/12 -> 1305.954162
B13: Pension inkl. evt. fritvalgstillæg | C13: =beløb*pensionsstatus% -> 2176.764397 | D13: =C13/12 -> 181.3970331
B14: Ferietillæg | C14: =D8%*(C12) -> 305.5932739 | D14: =C14/12 -> 25.46610616
B15: Bruttoudgift i alt | C15: =ROUND(SUM(C12:C14),0) -> 18154 | D15: =ROUND(SUM(D12:D14),0) -> 1513

Sheet Samlet_omk
A1: 2 | B1: Valgt lønniveau: | C1: =Forside!K11 -> 2023-04-01
B3: Løngruppe | C3: 0
B4: Timer/uge | C4: 37
B5: Pensions-% inkl. evt. fritvalgs-% | C5: 13.89
B6: Særlig feriegodtgørelse, aktuel pct. | C6: 1.95
B8: Løntrin | C8: 21
B10: Reguleret tillæg (31.3.2000) kr./år | C10: 12000
B13: Løn/time | C13: =IFERROR(ROUND(VLOOKUP(fra_trin,Lønark!A5:AU61,løngruppe+43,FALSE)/1924,2)+ROUND(C10*valgt_regulering/1924,2),ROUND(C10*valgt_regulering/1924,2)) -> 168.16
B14: Pension inkl. evt. fritvalgstillæg | C14: =C13*pensionsstatus% -> 23.357424
B15: Ferietillæg | C15: =C6%*C13 -> 3.27912
B16: Time bruttoudgift i alt | C16: =SUM(C13:C15) -> 194.796544
B18: Løn/måned | C18: =IFERROR((VLOOKUP(fra_trin,Lønark!A5:F61,løngruppe+2,FALSE)+(C10*valgt_regulering/12))/37*timetal,C10*valgt_regulering/12/37*timetal) -> 26961.88733
B19: Pension inkl. evt. fritvalgstillæg | C19: =IFERROR(((VLOOKUP(fra_trin,Lønark!L5:Q61,løngruppe+2,FALSE)+C10/12*valgt_regulering)/37*timetal)*pensionsstatus%,C10/12*valgt_regulering/37*timetal*pensionsstatus%) -> 3745.006151
B20: Ferietillæg | C20: =C6%*C18 -> 525.756803
B21: Månedlig bruttoudgift i alt | C21: =SUM(C18:C20) -> 31232.65029
B23: Løn/år | C23: =C18*12 -> 323542.648
B24: Pension inkl. evt. fritvalgstillæg | C24: =C19*12 -> 44940.07381
B25: Ferietillæg | C25: =C20*12 -> 6309.081636
B26: Årlig bruttoudgift i alt | C26: =SUM(C23:C25) -> 374791.8034

Sheet Tid op_ned
A1: 2 | B1: Valgt lønniveau: | C1: =Forside!K11 -> 2023-04-01
B3: Grundoplysninger:
B4: Løngruppe | C4: 4
B5: Pensions-% inkl. evt. fritvalgs-% | C5: 12.6
B6: Særlig feriegodtgørelse, aktuel procent | C6: 1.95
B9: Lønsammensætning (trin i alt og grundbeløb i alt) | C9: Før ændring | E9: Efter ændring
B11: Løndele: | C11: I alt
B13: Løntrin - centralt og lokalt aftalte | C13: 21 | E13: 21
B15: Tillæg (grundbeløb 31.3.2000) kr./år centralt og lokalt aftalte
C18: Før ændring | E18: Efter ændring | H18: Difference
B19: Timer/uge | C19: 37 | E19: 30 | H19: =-(C19-timetal_ny) -> -7
B21: Fast månedsløn | C21: =(VLOOKUP(C13,Lønark!A5:F61,$C$4+2,FALSE)+((C15)*valgt_regulering/12))/37*C19 -> 26913.41667 | E21: =(VLOOKUP(E13,Lønark!A5:F61,$C$4+2,FALSE)+((E15)*valgt_regulering/12))/37*timetal_ny -> 21821.68919 | H21: =E21-C21 -> -5091.727477
B22: Pension inkl. evt. fritvalgstillæg | C22: =(((VLOOKUP(C13,Lønark!L5:Q61,$C$4+2,FALSE)+(C15*valgt_regulering/12))/37*C19)*C5%) -> 3391.0905 | E22: =((VLOOKUP(E13,Lønark!L5:Q61,$C$4+2,FALSE)+(E15*valgt_regulering/12))/37*timetal_ny)*C5% -> 2749.532838 | H22: =E22-C22 -> -641.5576622
B23: Ferietillæg | C23: =$C$6%*C21 -> 524.811625 | E23: =$C$6%*E21 -> 425.5229392 | H23: =E23-C23 -> -99.28868581
B24: Månedsløn, brutto | C24: =SUM(C21:C23) -> 30829.31879 | E24: =SUM(E21:E23) -> 24996.74497 | H24: =E24-C24 -> -5832.573825
B26: Fast løn, år | C26: =C21*12 -> 322961 | D26: 0 | E26: 261860.2703 | H26: =E26-C26 -> -61100.72973
B27: Pension inkl. evt. fritvalgstillæg, år | C27: 40693.086 | D27: 0 | E27: 32994.39405 | H27: =E27-C27 -> -7698.691946
B28: Ferietillæg, år | C28: =C23*12 -> 6297.7395 | E28: =E23*12 -> 5106.27527 | H28: =E28-C28 -> -1191.46423
B29: Årsløn, brutto | C29: =SUM(C26:C28) -> 369951.8255 | E29: =SUM(E26:E28) -> 299960.9396 | H29: =E29-C29 -> -69990.88591
B31: Timeløn | C31: =ROUND(VLOOKUP(C13,Lønark!A5:AU61,C4+43,FALSE)/1924,2)+ROUND(C15*valgt_regulering/1924,2) -> 167.86 | D31: =D26/timetal_ny*37/1924 -> 0 | E31: =ROUND(VLOOKUP(E13,Lønark!A5:AU61,C4+43,FALSE)/1924,2)+ROUND(E15*valgt_regulering/1924,2) -> 167.86 | H31: =E31-C31 -> 0
